Workbook

Sheet Control Panel
A3: Starting | B3: Year | C3: Month
B4: 2012 | C4: May | Y4: 21
B5: Year | C5: Month | Y5: 2012
B6: 2013 | C6: July | Y6: 2013
Y7: 2014
B8: Date | C8: Site A | D8: Site B | E8: Port A Full(before ship) | G8: Port A Empty(before ship) | I8: Ship loads Til Full | K8: To destinations | M8: Ship loads port B Empty | O8: Port B Empty(before ship) | Q8: Empty containers | R8: Containers to destination A | S8: Containers to destination B | Y8: 2015
C9: Actual | D9: Actual | E9: Ship 1 | F9: Ship 2 | G9: Ship1 | H9: Ship2 | I9: Ship 1 | J9: Ship 2 | K9: Ship 1 | L9: Ship 2 | M9: Ship 1 | N9: Ship 2 | O9: Ship1 | P9: Ship2 | Q9: Empty | R9: To Ams | Y9: 2016
B10: =OFFSET('Container flow'!D8,$Y$4,0) -> 21 | C10: =OFFSET('Container flow'!E8,$Y$4,0) -> 0 | D10: =OFFSET('Container flow'!F8,$Y$4,0) -> 0 | E10: =OFFSET('Container flow'!G8,$Y$4,0) -> 0 | F10: =OFFSET('Container flow'!H8,$Y$4,0) -> 0 | G10: =OFFSET('Container flow'!I8,$Y$4,0) -> 0 | H10: =OFFSET('Container flow'!J8,$Y$4,0) -> 0 | I10: =OFFSET('Container flow'!K8,$Y$4,0) -> 0 | J10: =OFFSET('Container flow'!L8,$Y$4,0) -> 0 | K10: =OFFSET('Container flow'!M8,$Y$4,0) -> 0 | L10: =OFFSET('Container flow'!N8,$Y$4,0) -> 0 | M10: =OFFSET('Container flow'!O8,$Y$4,0) -> 0 | N10: =OFFSET('Container flow'!P8,$Y$4,0) -> 0 | O10: =OFFSET('Container flow'!Q8,$Y$4,0) -> 0 | P10: =OFFSET('Container flow'!R8,$Y$4,0) -> 0 | Q10: =OFFSET('Container flow'!S8,$Y$4,0) -> 147 | R10: =OFFSET('Container flow'!T8,$Y$4,0) -> 0 | S10: =OFFSET('Container flow'!U8,$Y$4,0) -> 3 | Y10: 2017
B11: =OFFSET('Container flow'!D9,$Y$4,0) -> 22 | C11: =OFFSET('Container flow'!E9,$Y$4,0) -> 20 | D11: =OFFSET('Container flow'!F9,$Y$4,0) -> 15 | E11: =OFFSET('Container flow'!G9,$Y$4,0) -> 0 | F11: =OFFSET('Container flow'!H9,$Y$4,0) -> 0 | G11: =OFFSET('Container flow'!I9,$Y$4,0) -> 0 | H11: =OFFSET('Container flow'!J9,$Y$4,0) -> 0 | I11: =OFFSET('Container flow'!K9,$Y$4,0) -> 59 | J11: =OFFSET('Container flow'!L9,$Y$4,0) -> 0 | K11: =OFFSET('Container flow'!M9,$Y$4,0) -> 30/ 30 | L11: =OFFSET('Container flow'!N9,$Y$4,0) -> 0 | M11: =OFFSET('Container flow'!O9,$Y$4,0) -> 0 | N11: =OFFSET('Container flow'!P9,$Y$4,0) -> 0 | O11: =OFFSET('Container flow'!Q9,$Y$4,0) -> 0 | P11: =OFFSET('Container flow'!R9,$Y$4,0) -> 0 | Q11: =OFFSET('Container flow'!S9,$Y$4,0) -> 150 | R11: =OFFSET('Container flow'!T9,$Y$4,0) -> 0 | S11: =OFFSET('Container flow'!U9,$Y$4,0) -> 0 | Y11: 2018
B12: =OFFSET('Container flow'!D10,$Y$4,0) -> 23 | C12: =OFFSET('Container flow'!E10,$Y$4,0) -> 20 | D12: =OFFSET('Container flow'!F10,$Y$4,0) -> 15 | E12: =OFFSET('Container flow'!G10,$Y$4,0) -> 0 | F12: =OFFSET('Container flow'!H10,$Y$4,0) -> 0 | G12: =OFFSET('Container flow'!I10,$Y$4,0) -> 0 | H12: =OFFSET('Container flow'!J10,$Y$4,0) -> 0 | I12: =OFFSET('Container flow'!K10,$Y$4,0) -> 0 | J12: =OFFSET('Container flow'!L10,$Y$4,0) -> 0 | K12: =OFFSET('Container flow'!M10,$Y$4,0) -> 0 | L12: =OFFSET('Container flow'!N10,$Y$4,0) -> 0 | M12: =OFFSET('Container flow'!O10,$Y$4,0) -> 66 | N12: =OFFSET('Container flow'!P10,$Y$4,0) -> 0 | O12: =OFFSET('Container flow'!Q10,$Y$4,0) -> 162 | P12: =OFFSET('Container flow'!R10,$Y$4,0) -> 0 | Q12: =OFFSET('Container flow'!S10,$Y$4,0) -> 144 | R12: =OFFSET('Container flow'!T10,$Y$4,0) -> 0 | S12: =OFFSET('Container flow'!U10,$Y$4,0) -> 0 | Y12: 2019
B13: =OFFSET('Container flow'!D11,$Y$4,0) -> 24 | C13: =OFFSET('Container flow'!E11,$Y$4,0) -> 20 | D13: =OFFSET('Container flow'!F11,$Y$4,0) -> 15 | E13: =OFFSET('Container flow'!G11,$Y$4,0) -> 0 | F13: =OFFSET('Container flow'!H11,$Y$4,0) -> 0 | G13: =OFFSET('Container flow'!I11,$Y$4,0) -> 0 | H13: =OFFSET('Container flow'!J11,$Y$4,0) -> 0 | I13: =OFFSET('Container flow'!K11,$Y$4,0) -> 0 | J13: =OFFSET('Container flow'!L11,$Y$4,0) -> 0 | K13: =OFFSET('Container flow'!M11,$Y$4,0) -> 0 | L13: =OFFSET('Container flow'!N11,$Y$4,0) -> 0 | M13: =OFFSET('Container flow'!O11,$Y$4,0) -> 0 | N13: =OFFSET('Container flow'!P11,$Y$4,0) -> 0 | O13: =OFFSET('Container flow'!Q11,$Y$4,0) -> 0 | P13: =OFFSET('Container flow'!R11,$Y$4,0) -> 0 | Q13: =OFFSET('Container flow'!S11,$Y$4,0) -> 144 | R13: =OFFSET('Container flow'!T11,$Y$4,0) -> 0 | S13: =OFFSET('Container flow'!U11,$Y$4,0) -> 0 | Y13: 2020
B14: =OFFSET('Container flow'!D12,$Y$4,0) -> 25 | C14: =OFFSET('Container flow'!E12,$Y$4,0) -> 20 | D14: =OFFSET('Container flow'!F12,$Y$4,0) -> 15 | E14: =OFFSET('Container flow'!G12,$Y$4,0) -> 27 | F14: =OFFSET('Container flow'!H12,$Y$4,0) -> 0 | G14: =OFFSET('Container flow'!I12,$Y$4,0) -> 0 | H14: =OFFSET('Container flow'!J12,$Y$4,0) -> 0 | I14: =OFFSET('Container flow'!K12,$Y$4,0) -> 78 | J14: =OFFSET('Container flow'!L12,$Y$4,0) -> 0 | K14: =OFFSET('Container flow'!M12,$Y$4,0) -> 39/ 39 | L14: =OFFSET('Container flow'!N12,$Y$4,0) -> 0 | M14: =OFFSET('Container flow'!O12,$Y$4,0) -> 0 | N14: =OFFSET('Container flow'!P12,$Y$4,0) -> 0 | O14: =OFFSET('Container flow'!Q12,$Y$4,0) -> 0 | P14: =OFFSET('Container flow'!R12,$Y$4,0) -> 0 | Q14: =OFFSET('Container flow'!S12,$Y$4,0) -> 144 | R14: =OFFSET('Container flow'!T12,$Y$4,0) -> 0 | S14: =OFFSET('Container flow'!U12,$Y$4,0) -> 0 | Y14: 2021
B15: =OFFSET('Container flow'!D13,$Y$4,0) -> 26 | C15: =OFFSET('Container flow'!E13,$Y$4,0) -> 20 | D15: =OFFSET('Container flow'!F13,$Y$4,0) -> 15 | E15: =OFFSET('Container flow'!G13,$Y$4,0) -> 0 | F15: =OFFSET('Container flow'!H13,$Y$4,0) -> 0 | G15: =OFFSET('Container flow'!I13,$Y$4,0) -> 0 | H15: =OFFSET('Container flow'!J13,$Y$4,0) -> 0 | I15: =OFFSET('Container flow'!K13,$Y$4,0) -> 0 | J15: =OFFSET('Container flow'!L13,$Y$4,0) -> 0 | K15: =OFFSET('Container flow'!M13,$Y$4,0) -> 0 | L15: =OFFSET('Container flow'!N13,$Y$4,0) -> 0 | M15: =OFFSET('Container flow'!O13,$Y$4,0) -> 40 | N15: =OFFSET('Container flow'!P13,$Y$4,0) -> 0 | O15: =OFFSET('Container flow'!Q13,$Y$4,0) -> 153 | P15: =OFFSET('Container flow'!R13,$Y$4,0) -> 0 | Q15: =OFFSET('Container flow'!S13,$Y$4,0) -> 182 | R15: =OFFSET('Container flow'!T13,$Y$4,0) -> 0 | S15: =OFFSET('Container flow'!U13,$Y$4,0) -> 0 | Y15: 2022
B16: =OFFSET('Container flow'!D14,$Y$4,0) -> 27 | C16: =OFFSET('Container flow'!E14,$Y$4,0) -> 0 | D16: =OFFSET('Container flow'!F14,$Y$4,0) -> 0 | E16: =OFFSET('Container flow'!G14,$Y$4,0) -> 0 | F16: =OFFSET('Container flow'!H14,$Y$4,0) -> 0 | G16: =OFFSET('Container flow'!I14,$Y$4,0) -> 0 | H16: =OFFSET('Container flow'!J14,$Y$4,0) -> 0 | I16: =OFFSET('Container flow'!K14,$Y$4,0) -> 0 | J16: =OFFSET('Container flow'!L14,$Y$4,0) -> 0 | K16: =OFFSET('Container flow'!M14,$Y$4,0) -> 0 | L16: =OFFSET('Container flow'!N14,$Y$4,0) -> 0 | M16: =OFFSET('Container flow'!O14,$Y$4,0) -> 0 | N16: =OFFSET('Container flow'!P14,$Y$4,0) -> 0 | O16: =OFFSET('Container flow'!Q14,$Y$4,0) -> 0 | P16: =OFFSET('Container flow'!R14,$Y$4,0) -> 0 | Q16: =OFFSET('Container flow'!S14,$Y$4,0) -> 182 | R16: =OFFSET('Container flow'!T14,$Y$4,0) -> 0 | S16: =OFFSET('Container flow'!U14,$Y$4,0) -> 0 | Y16: 2023
B17: =OFFSET('Container flow'!D15,$Y$4,0) -> 28 | C17: =OFFSET('Container flow'!E15,$Y$4,0) -> 0 | D17: =OFFSET('Container flow'!F15,$Y$4,0) -> 0 | E17: =OFFSET('Container flow'!G15,$Y$4,0) -> 15 | F17: =OFFSET('Container flow'!H15,$Y$4,0) -> 0 | G17: =OFFSET('Container flow'!I15,$Y$4,0) -> 0 | H17: =OFFSET('Container flow'!J15,$Y$4,0) -> 0 | I17: =OFFSET('Container flow'!K15,$Y$4,0) -> 78 | J17: =OFFSET('Container flow'!L15,$Y$4,0) -> 0 | K17: =OFFSET('Container flow'!M15,$Y$4,0) -> 39/ 39 | L17: =OFFSET('Container flow'!N15,$Y$4,0) -> 0 | M17: =OFFSET('Container flow'!O15,$Y$4,0) -> 0 | N17: =OFFSET('Container flow'!P15,$Y$4,0) -> 0 | O17: =OFFSET('Container flow'!Q15,$Y$4,0) -> 0 | P17: =OFFSET('Container flow'!R15,$Y$4,0) -> 0 | Q17: =OFFSET('Container flow'!S15,$Y$4,0) -> 182 | R17: =OFFSET('Container flow'!T15,$Y$4,0) -> 0 | S17: =OFFSET('Container flow'!U15,$Y$4,0) -> 0 | Y17: 2024
B18: =OFFSET('Container flow'!D16,$Y$4,0) -> 29 | C18: =OFFSET('Container flow'!E16,$Y$4,0) -> 20 | D18: =OFFSET('Container flow'!F16,$Y$4,0) -> 15 | E18: =OFFSET('Container flow'!G16,$Y$4,0) -> 0 | F18: =OFFSET('Container flow'!H16,$Y$4,0) -> 0 | G18: =OFFSET('Container flow'!I16,$Y$4,0) -> 0 | H18: =OFFSET('Container flow'!J16,$Y$4,0) -> 0 | I18: =OFFSET('Container flow'!K16,$Y$4,0) -> 0 | J18: =OFFSET('Container flow'!L16,$Y$4,0) -> 0 | K18: =OFFSET('Container flow'!M16,$Y$4,0) -> 0 | L18: =OFFSET('Container flow'!N16,$Y$4,0) -> 0 | M18: =OFFSET('Container flow'!O16,$Y$4,0) -> 75 | N18: =OFFSET('Container flow'!P16,$Y$4,0) -> 0 | O18: =OFFSET('Container flow'!Q16,$Y$4,0) -> 182 | P18: =OFFSET('Container flow'!R16,$Y$4,0) -> 0 | Q18: =OFFSET('Container flow'!S16,$Y$4,0) -> 185 | R18: =OFFSET('Container flow'!T16,$Y$4,0) -> 0 | S18: =OFFSET('Container flow'!U16,$Y$4,0) -> 0
B19: =OFFSET('Container flow'!D17,$Y$4,0) -> 30 | C19: =OFFSET('Container flow'!E17,$Y$4,0) -> 20 | D19: =OFFSET('Container flow'!F17,$Y$4,0) -> 15 | E19: =OFFSET('Container flow'!G17,$Y$4,0) -> 0 | F19: =OFFSET('Container flow'!H17,$Y$4,0) -> 0 | G19: =OFFSET('Container flow'!I17,$Y$4,0) -> 0 | H19: =OFFSET('Container flow'!J17,$Y$4,0) -> 0 | I19: =OFFSET('Container flow'!K17,$Y$4,0) -> 55 | J19: =OFFSET('Container flow'!L17,$Y$4,0) -> 0 | K19: =OFFSET('Container flow'!M17,$Y$4,0) -> 28/ 28 | L19: =OFFSET('Container flow'!N17,$Y$4,0) -> 0 | M19: =OFFSET('Container flow'!O17,$Y$4,0) -> 0 | N19: =OFFSET('Container flow'!P17,$Y$4,0) -> 0 | O19: =OFFSET('Container flow'!Q17,$Y$4,0) -> 0 | P19: =OFFSET('Container flow'!R17,$Y$4,0) -> 0 | Q19: =OFFSET('Container flow'!S17,$Y$4,0) -> 185 | R19: =OFFSET('Container flow'!T17,$Y$4,0) -> 0 | S19: =OFFSET('Container flow'!U17,$Y$4,0) -> 0 | Y19: January
B20: =OFFSET('Container flow'!D18,$Y$4,0) -> 31 | C20: =OFFSET('Container flow'!E18,$Y$4,0) -> 20 | D20: =OFFSET('Container flow'!F18,$Y$4,0) -> 15 | E20: =OFFSET('Container flow'!G18,$Y$4,0) -> 0 | F20: =OFFSET('Container flow'!H18,$Y$4,0) -> 0 | G20: =OFFSET('Container flow'!I18,$Y$4,0) -> 0 | H20: =OFFSET('Container flow'!J18,$Y$4,0) -> 0 | I20: =OFFSET('Container flow'!K18,$Y$4,0) -> 0 | J20: =OFFSET('Container flow'!L18,$Y$4,0) -> 0 | K20: =OFFSET('Container flow'!M18,$Y$4,0) -> 0 | L20: =OFFSET('Container flow'!N18,$Y$4,0) -> 0 | M20: =OFFSET('Container flow'!O18,$Y$4,0) -> 40 | N20: =OFFSET('Container flow'!P18,$Y$4,0) -> 0 | O20: =OFFSET('Container flow'!Q18,$Y$4,0) -> 201 | P20: =OFFSET('Container flow'!R18,$Y$4,0) -> 0 | Q20: =OFFSET('Container flow'!S18,$Y$4,0) -> 199 | R20: =OFFSET('Container flow'!T18,$Y$4,0) -> 0 | S20: =OFFSET('Container flow'!U18,$Y$4,0) -> 2 | Y20: Feburary
Y21: March
Y22: April
Y23: May
Y24: June
B25: KPI Panel | D25: Value | Y25: July
B26: Quay utilization | D26: 0.09 | Y26: August
B27: Ship capacity utilization | D27: 1 | Y27: September
B28: Sea transport utilization | D28: 0.68 | Y28: October
B29: Handling cost | D29: 94826.5 | Y29: November
B30: Number of containers | D30: 296 | Y30: December

Sheet Strategic planning
E3: Input | F3: Demand (containers/week) | G3: 175 | I3: Decision | J3: Frequency/ship/week | K3: 2.333333333 | M3: Turnaround | N3: 3.294117647 | O3: <=
F4: Ship capacity (containers/ship) | G4: 78 | J4: Number of ship | K4: 1 | M4: Demand | N4: 2.243589744 | O4: >=
F5: Sailing time (hours) | G5: 16 | J5: Max Frequency/ship/week | K5: 3.294117647 | M5: Storage | N5: 2.333333333 | O5: >=
F6: Handling time port B (hours) | G6: 9 | N6: =K3*K4 -> 2.333333333
F7: Handling time port A (hours) | G7: 10
F8: Containers' maximum storage time at ports | G8: 72

Sheet Scheduling
A1: Input | B1: No. of Ships | D1: Max Freq./ship | E1: 42 | H1: Decision day | I1: Arrival | J1: Convert 24 hr | K1: Day | L1: Slack change | O1: O | P1: Con24 | Q1: Day | R1: A1 | S1: Con24 | T1: Day | U1: Sl | V1: T | W1: A2 | X1: Con24 | Y1: Day | Z1: Sl | AC1: slack | AD1: test tilbury day and time
B2: Frequency/ship | C2: 31 | D2: Adjusted Freq | E2: 37 | H2: 1 | I2: 6 | J2: 6 | K2: 1 | L2: 20 | O2: 6 | P2: 6 | Q2: 1 | R2: 0 | S2: 0 | T2: 7 | U2: 0 | W2: 6 | X2: 6 | Y2: 1 | Z2: 20 | AB2: 1 | AC2: 0 | AD2: 2 | AE2: 7
B3: Handling time | C3: 9 | D3: No. of weeks | E3: 4635 | H3: 3 | I3: 57 | J3: 9 | K3: 3 | L3: 20 | M3: Total Cost | O3: 77 | P3: 5 | Q3: 4 | R3: 0 | S3: 0 | T3: 7 | U3: 0 | V3: C | W3: 57 | X3: 9 | Y3: 3 | Z3: 20 | AA3: C | AB3: 2 | AC3: 0 | AD3: 4 | AE3: 10
B4: Turnaround time | C4: 51 | H4: 5 | I4: 108 | J4: 12 | K4: 5 | L4: 5 | M4: 43852.5 | O4: 148 | P4: 4 | Q4: 7 | R4: 0 | S4: 0 | T4: 7 | U4: 0 | V4: 9999999999 | W4: 108 | X4: 12 | Y4: 5 | Z4: 5 | AA4: 43852.5 | AB4: 13 | AC4: 15 | AD4: 7 | AE4: 4
F5: Fixed | G5: 100 | H5: 8 | I5: 174 | J5: 6 | K5: 1 | L5: 20 | O5: 219 | P5: 3 | Q5: 3 | R5: 0 | S5: 0 | T5: 7 | U5: 0 | W5: 174 | X5: 6 | Y5: 1 | Z5: 20 | AB5: 26 | AC5: 0 | AD5: 9 | AE5: 7
A6: Cost Rate | B6: Begin time slot | C6: Finish time slot | D6: Begin 24h | E6: Finish 24h | F6: Change | G6: Rate | H6: 10 | I6: 225 | J6: 9 | K6: 3 | L6: 20 | O6: 290 | P6: 2 | Q6: 6 | R6: 0 | S6: 0 | T6: 7 | U6: 0 | W6: 225 | X6: 9 | Y6: 3 | Z6: 20 | AC6: 0 | AD6: 11 | AE6: 10
A7: Monday | B7: 0 | C7: 6 | D7: =MOD(B7,24) -> 0 | E7: =MOD(C7,24) -> 6 | F7: 52.5 | G7: =$G$5+F7 -> 152.5 | H7: 12 | I7: 276 | J7: 12 | K7: 5 | L7: 5 | O7: 361 | P7: 1 | Q7: 2 | R7: 0 | S7: 0 | T7: 7 | U7: 0 | W7: 276 | X7: 12 | Y7: 5 | Z7: 5 | AB7: 1 | AC7: 15 | AD7: 14 | AE7: 4
A8: Monday | B8: 6 | C8: 19 | D8: =MOD(B8,24) -> 6 | E8: =MOD(C8,24) -> 19 | F8: 30 | G8: =$G$5+F8 -> 130 | H8: 15 | I8: 342 | J8: 6 | K8: 1 | L8: 20 | O8: 432 | P8: 0 | Q8: 4 | R8: 0 | S8: 0 | T8: 7 | U8: 0 | W8: 342 | X8: 6 | Y8: 1 | Z8: 20 | AB8: 2 | AC8: 0 | AD8: 16 | AE8: 7
A9: Monday | B9: 19 | C9: =6+24 -> 30 | D9: 19 | E9: 6 | F9: 40 | G9: 140 | H9: 17 | I9: 393 | J9: 9 | K9: 3 | L9: 20 | O9: 503 | P9: 23 | Q9: 7 | R9: 0 | S9: 0 | T9: 7 | U9: 0 | W9: 393 | X9: 9 | Y9: 3 | Z9: 20 | AB9: 3 | AC9: 0 | AD9: 18 | AE9: 10
A10: Tuesday | B10: =B8+24 -> 30 | C10: 43 | D10: 6 | E10: 19 | F10: 30 | G10: 130 | H10: 19 | I10: 444 | J10: 12 | K10: 5 | L10: 5 | O10: 574 | P10: 22 | Q10: 3 | R10: 0 | S10: 0 | T10: 7 | U10: 0 | W10: 444 | X10: 12 | Y10: 5 | Z10: 5 | AB10: 4 | AC10: 15 | AD10: 21 | AE10: 4
A11: Tuesday | B11: 43 | C11: 54 | D11: 19 | E11: 6 | F11: 40 | G11: 140 | H11: 22 | I11: 510 | J11: 6 | K11: 1 | L11: 20 | O11: 645 | P11: 21 | Q11: 6 | R11: 0 | S11: 0 | T11: 7 | U11: 0 | W11: 510 | X11: 6 | Y11: 1 | Z11: 20 | AB11: 5 | AC11: 0 | AD11: 23 | AE11: 7
A12: Wednesday | B12: 54 | C12: 67 | D12: 6 | E12: 19 | F12: 30 | G12: 130 | H12: 24 | I12: 561 | J12: 9 | K12: 3 | L12: 20 | O12: 716 | P12: 20 | Q12: 2 | R12: 0 | S12: 0 | T12: 7 | U12: 0 | W12: 561 | X12: 9 | Y12: 3 | Z12: 20 | AB12: 6 | AC12: 0 | AD12: 25 | AE12: 10
A13: Wednesday | B13: 67 | C13: 78 | D13: 19 | E13: 6 | F13: 40 | G13: 140 | H13: 26 | I13: 612 | J13: 12 | K13: 5 | L13: 5 | O13: 787 | P13: 19 | Q13: 5 | R13: 0 | S13: 0 | T13: 7 | U13: 0 | W13: 612 | X13: 12 | Y13: 5 | Z13: 5 | AB13: 7 | AC13: 15 | AD13: 28 | AE13: 4
A14: Thursday | B14: 78 | C14: 91 | D14: 6 | E14: 19 | F14: 30 | G14: 130 | H14: 29 | I14: 678 | J14: 6 | K14: 1 | L14: 20 | O14: 858 | P14: 18 | Q14: 1 | R14: 0 | S14: 0 | T14: 7 | U14: 0 | W14: 678 | X14: 6 | Y14: 1 | Z14: 20 | AB14: 8 | AC14: 0 | AD14: 30 | AE14: 7
A15: Thursday | B15: 91 | C15: 102 | D15: 19 | E15: 6 | F15: 40 | G15: 140 | H15: 31 | I15: 729 | J15: 9 | K15: 3 | L15: 20 | O15: 929 | P15: 17 | Q15: 4 | R15: 0 | S15: 0 | T15: 7 | U15: 0 | W15: 729 | X15: 9 | Y15: 3 | Z15: 20 | AB15: 9 | AC15: 0 | AD15: 32 | AE15: 10
A16: Friday | B16: 102 | C16: 115 | D16: 6 | E16: 19 | F16: 30 | G16: 130 | H16: 33 | I16: 780 | J16: 12 | K16: 5 | L16: 5 | O16: 1000 | P16: 16 | Q16: 7 | R16: 0 | S16: 0 | T16: 7 | U16: 0 | W16: 780 | X16: 12 | Y16: 5 | Z16: 5 | AB16: 10 | AC16: 15 | AD16: 35 | AE16: 4
A17: Friday | B17: 115 | C17: 120 | D17: 19 | E17: 0 | F17: 40 | G17: 140 | H17: 36 | I17: 846 | J17: 6 | K17: 1 | L17: 20 | O17: 1071 | P17: 15 | Q17: 3 | R17: 0 | S17: 0 | T17: 7 | U17: 0 | W17: 846 | X17: 6 | Y17: 1 | Z17: 20 | AB17: 11 | AC17: 0 | AD17: 37 | AE17: 7
A18: Saturday | B18: 120 | C18: 126 | D18: 0 | E18: 6 | F18: 42 | G18: 142 | H18: 38 | I18: 897 | J18: 9 | K18: 3 | L18: 20 | O18: 1142 | P18: 14 | Q18: 6 | R18: 0 | S18: 0 | T18: 7 | U18: 0 | W18: 897 | X18: 9 | Y18: 3 | Z18: 20 | AB18: 12 | AC18: 0 | AD18: 39 | AE18: 10
A19: Saturday | B19: 126 | C19: 139 | D19: 6 | E19: 19 | F19: 40 | G19: 140 | H19: 40 | I19: 948 | J19: 12 | K19: 5 | L19: 5 | O19: 1213 | P19: 13 | Q19: 2 | R19: 0 | S19: 0 | T19: 7 | U19: 0 | W19: 948 | X19: 12 | Y19: 5 | Z19: 5 | AB19: 13 | AC19: 15 | AD19: 42 | AE19: 4
A20: Saturday | B20: 139 | C20: 144 | D20: 19 | E20: 0 | F20: 42 | G20: 142 | H20: 43 | I20: 1014 | J20: 6 | K20: 1 | L20: 20 | O20: 1284 | P20: 12 | Q20: 5 | R20: 0 | S20: 0 | T20: 7 | U20: 0 | W20: 1014 | X20: 6 | Y20: 1 | Z20: 20 | AB20: 14 | AC20: 0 | AD20: 44 | AE20: 7
A21: Sunday | B21: 144 | C21: 168 | D21: 0 | E21: 0 | F21: 52.5 | G21: 152.5 | H21: 45 | I21: 1065 | J21: 9 | K21: 3 | L21: 20 | O21: 1355 | P21: 11 | Q21: 1 | R21: 0 | S21: 0 | T21: 7 | U21: 0 | W21: 1065 | X21: 9 | Y21: 3 | Z21: 20 | AB21: 15 | AC21: 0 | AD21: 46 | AE21: 10
H22: 47 | I22: 1116 | J22: 12 | K22: 5 | L22: 5 | O22: 1426 | P22: 10 | Q22: 4 | R22: 0 | S22: 0 | T22: 7 | U22: 0 | W22: 1116 | X22: 12 | Y22: 5 | Z22: 5 | AB22: 16 | AC22: 15 | AD22: 49 | AE22: 4
H23: 50 | I23: 1182 | J23: 6 | K23: 1 | L23: 20 | O23: 1497 | P23: 9 | Q23: 7 | R23: 0 | S23: 0 | T23: 7 | U23: 0 | W23: 1182 | X23: 6 | Y23: 1 | Z23: 20 | AB23: 17 | AC23: 0 | AD23: 51 | AE23: 7
H24: 52 | I24: 1233 | J24: 9 | K24: 3 | L24: 20 | O24: 1568 | P24: 8 | Q24: 3 | R24: 0 | S24: 0 | T24: 7 | U24: 0 | W24: 1233 | X24: 9 | Y24: 3 | Z24: 20 | AB24: 18 | AC24: 0 | AD24: 53 | AE24: 10
H25: 54 | I25: 1284 | J25: 12 | K25: 5 | L25: 5 | O25: 1639 | P25: 7 | Q25: 6 | R25: 0 | S25: 0 | T25: 7 | U25: 0 | W25: 1284 | X25: 12 | Y25: 5 | Z25: 5 | AB25: 19 | AC25: 15 | AD25: 56 | AE25: 4
H26: 57 | I26: 1350 | J26: 6 | K26: 1 | L26: 20 | O26: 1710 | P26: 6 | Q26: 2 | R26: 0 | S26: 0 | T26: 7 | U26: 0 | W26: 1350 | X26: 6 | Y26: 1 | Z26: 20 | AB26: 20 | AC26: 0 | AD26: 58 | AE26: 7
H27: 59 | I27: 1401 | J27: 9 | K27: 3 | L27: 20 | O27: 1781 | P27: 5 | Q27: 5 | R27: 0 | S27: 0 | T27: 7 | U27: 0 | W27: 1401 | X27: 9 | Y27: 3 | Z27: 20 | AB27: 21 | AC27: 0 | AD27: 60 | AE27: 10
H28: 61 | I28: 1452 | J28: 12 | K28: 5 | L28: 5 | O28: 1852 | P28: 4 | Q28: 1 | R28: 0 | S28: 0 | T28: 7 | U28: 0 | W28: 1452 | X28: 12 | Y28: 5 | Z28: 5 | AB28: 22 | AC28: 15 | AD28: 63 | AE28: 4
H29: 64 | I29: 1518 | J29: 6 | K29: 1 | L29: 20 | O29: 1923 | P29: 3 | Q29: 4 | R29: 0 | S29: 0 | T29: 7 | U29: 0 | W29: 1518 | X29: 6 | Y29: 1 | Z29: 20 | AB29: 23 | AC29: 0 | AD29: 65 | AE29: 7
H30: 66 | I30: 1569 | J30: 9 | K30: 3 | L30: 18 | O30: 1994 | P30: 2 | Q30: 7 | R30: 0 | S30: 0 | T30: 7 | U30: 0 | W30: 1569 | X30: 9 | Y30: 3 | Z30: 18 | AB30: 24 | AC30: 2 | AD30: 67 | AE30: 12
H31: 68 | I31: 1622 | J31: 14 | K31: 5 | L31: 0 | O31: 2065 | P31: 1 | Q31: 3 | R31: 0 | S31: 0 | T31: 7 | U31: 0 | W31: 1622 | X31: 14 | Y31: 5 | Z31: 0 | AB31: 25 | AC31: 20 | AD31: 70 | AE31: 11
H32: 71 | I32: 1693 | J32: 13 | K32: 1 | L32: 0 | O32: 2136 | P32: 0 | Q32: 5 | R32: 0 | S32: 0 | T32: 7 | U32: 0 | W32: 1693 | X32: 13 | Y32: 1 | Z32: 0 | AB32: 26 | AC32: 20 | AD32: 73 | AE32: 10
H33: 74 | I33: 1764 | J33: 12 | K33: 4 | L33: 0 | O33: 2207 | P33: 23 | Q33: 1 | R33: 0 | S33: 0 | T33: 7 | U33: 0 | W33: 1764 | X33: 12 | Y33: 4 | Z33: 0 | AB33: no bound | AC33: 20 | AD33: 76 | AE33: 9
H34: 77 | I34: 1835 | J34: 11 | K34: 7 | L34: 0 | O34: 2278 | P34: 22 | Q34: 4 | R34: 0 | S34: 0 | T34: 7 | U34: 0 | W34: 1835 | X34: 11 | Y34: 7 | Z34: 0 | AC34: 20 | AD34: 79 | AE34: 8
H35: 80 | I35: 1906 | J35: 10 | K35: 3 | L35: 0 | O35: 2349 | P35: 21 | Q35: 7 | R35: 0 | S35: 0 | T35: 7 | U35: 0 | W35: 1906 | X35: 10 | Y35: 3 | Z35: 0 | AC35: 20 | AD35: 82 | AE35: 7
H36: 83 | I36: 1977 | J36: 9 | K36: 6 | L36: 0 | O36: 2420 | P36: 20 | Q36: 3 | R36: 0 | S36: 0 | T36: 7 | U36: 0 | W36: 1977 | X36: 9 | Y36: 6 | Z36: 0 | AC36: 20 | AD36: 85 | AE36: 6
G37: =2190-I36 -> 213 | H37: 86 | I37: 2048 | J37: 8 | K37: 2 | L37: 0 | O37: 2491 | P37: 19 | Q37: 6 | R37: 0 | S37: 0 | T37: 7 | U37: 0 | W37: 2048 | X37: 8 | Y37: 2 | Z37: 0 | AC37: 20 | AD37: 88 | AE37: 5
H38: 89 | I38: 2119 | J38: 7 | K38: 5 | L38: 0 | O38: 2562 | P38: 18 | Q38: 2 | R38: 0 | S38: 0 | T38: 7 | U38: 0 | W38: 2119 | X38: 7 | Y38: 5 | Z38: 0 | AC38: 20 | AD38: 91 | AE38: 4
AD39: 45 | AE39: 7
AD40: 46 | AE40: 7
AD41: 47 | AE41: 10
AD42: 48 | AE42: 20
AD43: 50 | AE43: 4
AD44: 51 | AE44: 4
AD45: 52 | AE45: 7
AD46: 53 | AE46: 7
AD47: 54 | AE47: 10
AD48: 55 | AE48: 20
AD49: 57 | AE49: 4
AD50: 58 | AE50: 4
AD51: 59 | AE51: 7
AD52: 60 | AE52: 7
AD53: 61 | AE53: 10
AD54: 62 | AE54: 20
AD55: 64 | AE55: 4
AD56: 65 | AE56: 4
AD57: 66 | AE57: 7
AD58: 67 | AE58: 7
AD59: 68 | AE59: 10
AD60: 69 | AE60: 20
AD61: 71 | AE61: 4
AD62: 72 | AE62: 4
AD63: 73 | AE63: 7
AD64: 74 | AE64: 7
AD65: 75 | AE65: 10
AD66: 75 | AE66: 10
AD67: 76 | AE67: 20
AD68: 79 | AE68: 6
AD69: 79 | AE69: 14
AD70: 81 | AE70: 8
AD71: 81 | AE71: 16
AD72: 84 | AE72: 4
AD73: 84 | AE73: 12
AD74: 86 | AE74: 6
AD75: 86 | AE75: 14
AD76: 88 | AE76: 8
AD77: 88 | AE77: 16
AD78: 91 | AE78: 4
AD79: 91 | AE79: 12
AD80: 93 | AE80: 6
AD81: 93 | AE81: 14
AD82: 95 | AE82: 8
AD83: 95 | AE83: 16
AD84: 98 | AE84: 4
AD85: 98 | AE85: 12
AD86: 100 | AE86: 6
AD87: 100 | AE87: 14
AD88: 102 | AE88: 8
AD89: 102 | AE89: 16
AD90: 105 | AE90: 4
AD91: 105 | AE91: 12
AD92: 107 | AE92: 6
AD93: 107 | AE93: 14
AD94: 109 | AE94: 8
AD95: 109 | AE95: 16
AD96: 112 | AE96: 4
AD97: 112 | AE97: 12
AD98: 114 | AE98: 6
AD99: 114 | AE99: 14
AD100: 116 | AE100: 8
AD101: 116 | AE101: 16
AD102: 119 | AE102: 4
AD103: 119 | AE103: 12
AD104: 121 | AE104: 6
AD105: 121 | AE105: 14
AD106: 123 | AE106: 8
AD107: 123 | AE107: 16
AD108: 126 | AE108: 4
AD109: 126 | AE109: 12
AD110: 128 | AE110: 6
AD111: 128 | AE111: 14
AD112: 161 | AE112: 4
AD113: 161 | AE113: 12

Sheet Container flow
F1: on ship full max | H1: 78 | N1: on ship empty max | P1: 78 | AK1: 1 | AL1: shipsea volume | AM1: 154 | AN1: 390
A2: Contract Starting | G2: 20 | I2: 100 | R2: initial state | S2: 60 | T2: 36 | U2: 20 | W2: Shipping information | AE2: Prepared information (parts marked with red need to be filled in before run) | AK2: 10 | AL2: full_til | AM2: 20
A3: Year | D3: Date | E3: Site A | F3: Site B | G3: Port A Full(before ship) | I3: Port A Empty(before ship) | K3: Ship loads port A Full | M3: To destinations | O3: Ship loads port B Empty | Q3: Port B Empty(before ship) | S3: Empty containers | T3: Containers to destination A | U3: Containers to destination B | W3: Which day of period | X3: No.of ship port A | Y3: Shiptime port A | AA3: No.of ship port B | AB3: Shiptime port B | AF3: Last day of previous month at port B | AL3: empty_til | AM3: 100
B4: 2012 | C4: May | E4: Actual | F4: Actual | G4: Ship 1 | H4: Ship 2 | I4: Ship1 | J4: Ship2 | K4: Ship 1 | L4: Ship 2 | M4: Ship 1 | N4: Ship 2 | O4: Ship 1 | P4: Ship 2 | Q4: Ship1 | R4: Ship2 | S4: Empty | T4: To Ams | W4: Which day | Y4: Ship 1 | Z4: Ship 2 | AB4: Ship 1 | AC4: Ship 2 | AM4: test contoinci | AO4: for model 2
AF5: Ship1 | AG5: Ship2 | AL5: 2012
B6: 2016 | C6: March | AK6: 2013 | AL6: 2013
AK7: 2014 | AL7: 2014
AK8: 2015 | AL8: 2015
A9: Planning | D9: 1 | E9: 20 | F9: 15 | O9: 60 | Q9: 60 | S9: 122 | T9: 0 | U9: 10 | W9: 64 | X9: 0 | AA9: 1 | AB9: 6 | AF9: Ship1 | AG9: Ship2 | AK9: 2016 | AL9: 2016 | AM9: 38 | AN9: 38 | AO9: 76 | AQ9: 60 | AS9: 60 | AU9: 97 | AW9: =AS9-78 -> -18
A10: Year | D10: 2 | E10: 20 | F10: 15 | G10: 0 | I10: 60 | K10: 60 | M10: 30/ 30 | S10: 132 | T10: 0 | U10: 0 | W10: 65 | X10: 1 | Y10: 7 | AA10: 0 | AE10: time | AK10: 2017 | AL10: 2017 | AM10: 0 | AN10: 0 | AV10: 78
D11: 3 | E11: 20 | F11: 15 | O11: 34 | Q11: 148 | S11: 175 | T11: 0 | U11: 2 | W11: 66 | X11: 0 | AA11: 1 | AB11: 9 | AE11: unloading to destination A | AK11: 2018 | AL11: 2018 | AM11: 30 | AN11: 30 | AO11: 60 | AQ11: 34 | AS11: 15 | AU11: 78 | AW11: =AS11-78 -> -63
D12: 4 | E12: 20 | F12: 15 | G12: 1 | I12: 41 | K12: 78 | M12: 39/ 39 | S12: 177 | T12: 0 | U12: 0 | W12: 67 | X12: 1 | Y12: 12 | AA12: 0 | AE12: unloading to destination B | AK12: 2019 | AL12: 2019 | AM12: 0 | AN12: 0
D13: 5 | E13: 20 | F13: 15 | O13: 78 | Q13: 208 | S13: 129 | T13: 21 | U13: 25 | W13: 68 | X13: 0 | AA13: 1 | AB13: 14 | AE13: loading volume | AK13: 2020 | AL13: 2020 | AM13: 39 | AN13: 39 | AO13: 78 | AQ13: 78 | AS13: 80
D14: 6 | E14: 0 | F14: 0 | S14: 175 | T14: 0 | U14: 0 | W14: 69 | X14: 0 | AA14: 0 | AK14: 2021 | AL14: 2021 | AM14: 0 | AN14: 0 | AU14: 78 | AV14: 78 | AW14: =AS14-78 -> -78
D15: 7 | E15: 0 | F15: 0 | G15: 0 | I15: 0 | K15: 57 | M15: 29/ 29 | S15: 175 | T15: 0 | U15: 0 | W15: 70 | X15: 1 | Y15: 11 | AA15: 0 | AF15: Last voyage of previous month | AK15: 2022 | AL15: 2022 | AM15: 0 | AN15: 0
D16: 8 | E16: 20 | F16: 15 | O16: 78 | Q16: 193 | S16: 111 | T16: 12 | U16: 15 | W16: 71 | X16: 0 | AA16: 1 | AB16: 13 | AF16: Port A | AH16: Port B | AK16: 2023 | AL16: 2023 | AM16: 29 | AN16: 29 | AO16: 57 | AQ16: 78 | AS16: 95 | AV16: 78 | AX16: =AT16-78 -> -78
D17: 9 | E17: 20 | F17: 15 | S17: 138 | T17: 0 | U17: 0 | W17: 72 | X17: 0 | AA17: 0 | AF17: Ship1 | AG17: Ship2 | AH17: Ship1 | AI17: Ship2 | AK17: 2024 | AL17: 2024 | AM17: 0 | AN17: 0 | AU17: 78
D18: 10 | E18: 20 | F18: 15 | G18: 2 | I18: 0 | K18: 78 | M18: 39/ 39 | S18: 138 | T18: 0 | U18: 0 | W18: 73 | X18: 1 | Y18: 10 | AA18: 0 | AE18: loading to destination A | AF18: 38 | AG18: 39 | AM18: 0 | AN18: 0 | AV18: 78 | AX18: =AT18-78 -> -78
D19: 11 | E19: 20 | F19: 15 | O19: 67 | Q19: 166 | S19: 146 | T19: 12 | U19: 16 | W19: 74 | X19: 0 | AA19: 1 | AB19: 12 | AE19: loading to destination B | AF19: 38 | AG19: 39 | AK19: January | AM19: 39 | AN19: 39 | AO19: 78 | AQ19: 67 | AS19: 42
D20: 12 | E20: 20 | F20: 15 | S20: 174 | T20: 0 | U20: 0 | W20: 75 | X20: 0 | AA20: 0 | AE20: loading volume | AF20: 76 | AG20: 78 | AH20: 40 | AI20: 70 | AK20: Feburary | AM20: 0 | AN20: 0
D21: 13 | E21: 0 | F21: 0 | G21: 19 | I21: 0 | K21: 78 | M21: 39/ 39 | S21: 174 | T21: 0 | U21: 0 | W21: 76 | X21: 1 | Y21: 9 | AA21: 0 | AK21: March | AM21: 0 | AN21: 0 | AU21: 78 | AV21: 78 | AX21: =AT21-78 -> -78
D22: 14 | E22: 0 | F22: 0 | O22: 78 | Q22: 184 | S22: 81 | T22: 29 | U22: 39 | W22: 77 | X22: 0 | AA22: 1 | AB22: 11 | AF22: First two voyages of next month at port A | AK22: April | AM22: 39 | AN22: 39 | AO22: 78 | AQ22: 78 | AS22: 103
D23: 15 | E23: 20 | F23: 15 | S23: 149 | T23: 0 | U23: 0 | W23: 78 | X23: 0 | AA23: 0 | AK23: May | AM23: 0 | AN23: 0 | AU23: 78 | AW23: =AS23-78 -> -78
D24: 16 | E24: 20 | F24: 15 | G24: 0 | I24: 0 | K24: 61 | M24: 31/ 31 | S24: 149 | T24: 0 | U24: 0 | W24: 79 | X24: 1 | Y24: 8 | AA24: 0 | AF24: Day | AG24: time | AH24: Ship | AK24: June | AM24: 0 | AN24: 0 | AV24: 78
D25: 17 | E25: 20 | F25: 15 | O25: 61 | Q25: 170 | S25: 168 | T25: 3 | U25: 6 | W25: 80 | X25: 0 | AA25: 1 | AB25: 10 | AE25: 1st voyage | AF25: 1 | AG25: 10 | AH25: 1 | AK25: July | AM25: 31 | AN25: 31 | AO25: 61 | AQ25: 61 | AS25: 34 | AU25: 78
D26: 18 | E26: 20 | F26: 15 | S26: 177 | T26: 0 | U26: 0 | W26: 81 | X26: 0 | AA26: 0 | AE26: 2nd voyage | AF26: 4 | AG26: 4 | AH26: 1 | AK26: August | AM26: 0 | AN26: 0
D27: 19 | E27: 20 | F27: 15 | G27: 25 | I27: 0 | K27: 78 | M27: 39/ 39 | S27: 177 | T27: 0 | U27: 0 | W27: 82 | X27: 1 | Y27: 7 | AA27: 0 | AE27: 3rd voyage | AF27: 6 | AG27: 7 | AH27: 1 | AK27: September | AM27: 0 | AN27: 0
D28: 20 | E28: 0 | F28: 0 | O28: 78 | Q28: 199 | S28: 147 | T28: 0 | U28: 3 | W28: 83 | X28: 0 | AA28: 1 | AB28: 9 | AK28: October | AM28: 39 | AN28: 39 | AO28: 78 | AQ28: 78 | AS28: 105 | AU28: 78 | AV28: 78 | AW28: =AS28-78 -> 27
D29: 21 | E29: 0 | F29: 0 | S29: 147 | T29: 0 | U29: 3 | W29: 84 | X29: 0 | AA29: 0 | AK29: November | AM29: 0 | AN29: 0
D30: 22 | E30: 20 | F30: 15 | G30: 0 | I30: 0 | K30: 59 | M30: 30/ 30 | S30: 150 | T30: 0 | U30: 0 | W30: 85 | X30: 1 | Y30: 6 | AA30: 0 | AK30: December | AM30: 0 | AN30: 0 | AV30: 78 | AX30: =AT30-78 -> -78
D31: 23 | E31: 20 | F31: 15 | O31: 66 | Q31: 162 | S31: 144 | T31: 0 | U31: 0 | W31: 86 | X31: 0 | AA31: 1 | AB31: 8 | AM31: 30 | AN31: 30 | AO31: 59 | AQ31: 66 | AS31: 66 | AU31: 78
D32: 24 | E32: 20 | F32: 15 | S32: 144 | T32: 0 | U32: 0 | W32: 87 | X32: 0 | AA32: 0 | AM32: 0 | AN32: 0 | AV32: 78 | AX32: =AT32-78 -> -78
D33: 25 | E33: 20 | F33: 15 | G33: 27 | I33: 0 | K33: 78 | M33: 39/ 39 | S33: 144 | T33: 0 | U33: 0 | W33: 88 | X33: 1 | Y33: 5 | AA33: 0 | AM33: 0 | AN33: 0
D34: 26 | E34: 20 | F34: 15 | O34: 40 | Q34: 153 | S34: 182 | T34: 0 | U34: 0 | W34: 89 | X34: 0 | AA34: 1 | AB34: 7 | AM34: 39 | AN34: 39 | AO34: 78 | AQ34: 40 | AS34: 40
D35: 27 | E35: 0 | F35: 0 | S35: 182 | T35: 0 | U35: 0 | W35: 90 | X35: 0 | AA35: 0 | AM35: 0 | AN35: 0 | AU35: 78 | AV35: 78 | AX35: =AT35-78 -> -78
D36: 28 | E36: 0 | F36: 0 | G36: 15 | I36: 0 | K36: 78 | M36: 39/ 39 | S36: 182 | T36: 0 | U36: 0 | W36: 91 | X36: 1 | Y36: 4 | AA36: 0 | AM36: 0 | AN36: 0
D37: 29 | E37: 20 | F37: 15 | O37: 75 | Q37: 182 | S37: 185 | T37: 0 | U37: 0 | W37: 1 | X37: 0 | AA37: 1 | AB37: 6 | AM37: 39 | AN37: 39 | AO37: 78 | AQ37: 75 | AS37: 75 | AU37: 78 | AW37: =AS37-78 -> -3
D38: 30 | E38: 20 | F38: 15 | G38: 0 | I38: 0 | K38: 55 | M38: 28/ 28 | S38: 185 | T38: 0 | U38: 0 | W38: 2 | X38: 1 | Y38: 7 | AA38: 0 | AM38: 0 | AN38: 0 | AV38: 15
D39: 31 | E39: 20 | F39: 15 | O39: 40 | Q39: 201 | S39: 199 | T39: 0 | U39: 2 | W39: 3 | X39: 0 | AA39: 1 | AB39: 9 | AM39: 28 | AN39: 28 | AO39: 55 | AQ39: 40 | AS39: 40 | AU39: 78 | AW39: =AS39-78 -> -38
W40: 4 | X40: 1 | Y40: 10
D41: Customer site | F41: Time | G41: O_MF | H41: C_MF | I41: O_Sat | J41: C_Sat | K41: O_Sun | L41: C_Sun | N41: Customer site | O41: Volume | P41: MF | Q41: Sat | R41: Sun | W41: 5 | X41: 0
D42: working time | F42: Site A | G42: 6 | H42: 18 | I42: 6 | J42: 18 | K42: 0 | L42: 0 | N42: volume | O42: Site A | P42: 20 | Q42: 0 | R42: 0 | W42: 6 | X42: 0
D43: (must fill in) | F43: Site B | G43: 0 | H43: 2 | I43: 0 | J43: 2 | K43: 0 | L43: 0 | O43: Site B | P43: 15 | Q43: 0 | R43: 0 | W43: 7 | X43: 1 | Y43: 4
G44: 18 | H44: 24 | I44: 18 | J44: 24 | K44: 0 | L44: 0 | W44: 8 | X44: 0
W45: 9 | X45: 1 | Y45: 7
W46: 10 | X46: 0
W47: 11 | X47: 1 | Y47: 10
W48: 12 | X48: 0
W49: 13 | X49: 0

Sheet Truck plan
C1: MF_Open | D1: MF_close | E1: Sat_Open | F1: Sat_Close | G1: Sun_Open | H1: Sun_Close | K1: Open | L1: Close | M1: Sat_Open | N1: Sat_Close | O1: Sun_Open | P1: Sun_Close
B2: Opening time destination A | C2: 6 | D2: 22 | E2: 6 | F2: 22 | G2: 7 | H2: 14 | J2: Opening time port B | K2: 6 | L2: 19 | M2: 6 | N2: 19 | O2: 7 | P2: 14
B3: Opening time destination B | C3: 6 | D3: 18 | E3: 6 | F3: 18 | Q3: Destination A | T3: Destination B
B4: Inter_trucks (begin time) | C4: =6/60 -> 0.1 | D4: =5/60 -> 0.08333333333 | E4: hrs | O4: max frequency | Q4: 17 | T4: 8
B5: Max truck visit times | C5: 21 | D5: 15
C6: To AEB | D6: To HVC | E6: Sat_To AEB | F6: Sat_To HVC | G6: Sun_To AEB | H6: Sun_To HVC
O7: Max truck volume
C8: =COUNT(C11:C100) -> 31 | O8: 99 | P8: 99 | Q8: 51 | R8: 48 | S8: 48 | T8: 0
B9: Round Trip Time | C9: 0.75 | D9: 1.5 | E9: Number of trucks | G9: Frequency/truck | I9: Which day | O9: Destination A | R9: Destination B
B10: Truck schedule day | C10: Containers To destination A | D10: Confainers To destination B | E10: To destination A | F10: To destination B | G10: To destination A | H10: To destination B | O10: MF | P10: Sat | Q10: Sun | R10: MF | S10: Sat | T10: Sun
B11: 1 | C11: 74 | D11: 48 | E11: 5 | F11: 6 | G11: 17 | H11: 8 | I11: 1 | N11: 1 | O11: 17 | P11: 17 | Q11: 9 | R11: 8 | S11: 8 | T11: 0
B12: 2 | C12: 0 | D12: 10 | E12: 0 | F12: 2 | G12: 0 | H12: 8 | I12: 2 | N12: 2 | O12: 17 | P12: 17 | Q12: 9 | R12: 8 | S12: 8 | T12: 0
B13: 3 | C13: 30 | D13: 28 | E13: 2 | F13: 4 | G13: 17 | H13: 8 | I13: 3 | N13: 3 | O13: 17 | P13: 17 | Q13: 9 | R13: 8 | S13: 8 | T13: 0
B14: 4 | C14: 0 | D14: 2 | E14: 0 | F14: 1 | G14: 0 | H14: 8 | I14: 4 | N14: 4 | O14: 16 | P14: 16 | Q14: 8 | R14: 8 | S14: 8 | T14: 0
B15: 5 | C15: 18 | D15: 14 | E15: 2 | F15: 2 | G15: 17 | H15: 8 | I15: 5 | N15: 5 | O15: 16 | P15: 16 | Q15: 8 | R15: 8 | S15: 8 | T15: 0
B16: 6 | C16: 21 | D16: 25 | E16: 2 | F16: 4 | G16: 17 | H16: 8 | I16: 6 | N16: 6 | O16: 16 | P16: 16 | Q16: 8 | R16: 8 | S16: 8 | T16: 0
B17: 7 | C17: 0 | D17: 0 | E17: 0 | F17: 0 | G17: 0 | H17: 0 | I17: 7
B18: 8 | C18: 17 | D18: 14 | E18: 1 | F18: 2 | G18: 17 | H18: 8 | I18: 1
B19: 9 | C19: 12 | D19: 15 | E19: 1 | F19: 2 | G19: 17 | H19: 8 | I19: 2
B20: 10 | C20: 0 | D20: 0 | E20: 0 | F20: 0 | G20: 0 | H20: 0 | I20: 3
B21: 11 | C21: 27 | D21: 23 | E21: 2 | F21: 3 | G21: 17 | H21: 8 | I21: 4
B22: 12 | C22: 12 | D22: 16 | E22: 1 | F22: 2 | G22: 17 | H22: 8 | I22: 5
B23: 13 | C23: 0 | D23: 0 | E23: 0 | F23: 0 | G23: 0 | H23: 0 | I23: 6
B24: 14 | C24: 10 | D24: 0 | E24: 2 | F24: 0 | G24: 9 | H24: 0 | I24: 7
B25: 15 | C25: 29 | D25: 39 | E25: 2 | F25: 5 | G25: 17 | H25: 8 | I25: 1
B26: 16 | C26: 0 | D26: 0 | E26: 0 | F26: 0 | G26: 0 | H26: 0 | I26: 2
B27: 17 | C27: 28 | D27: 25 | E27: 2 | F27: 4 | G27: 17 | H27: 8 | I27: 3
B28: 18 | C28: 3 | D28: 6 | E28: 1 | F28: 1 | G28: 17 | H28: 8 | I28: 4
B29: 19 | C29: 0 | D29: 0 | E29: 0 | F29: 0 | G29: 0 | H29: 0 | I29: 5
B30: 20 | C30: 39 | D30: 36 | E30: 3 | F30: 5 | G30: 17 | H30: 8 | I30: 6
B31: 21 | C31: 0 | D31: 0 | E31: 0 | F31: 0 | G31: 0 | H31: 0 | I31: 7
B32: 22 | C32: 0 | D32: 3 | E32: 0 | F32: 1 | G32: 0 | H32: 8 | I32: 1
B33: 23 | C33: 30 | D33: 30 | E33: 2 | F33: 4 | G33: 17 | H33: 8 | I33: 2
B34: 24 | C34: 0 | D34: 0 | E34: 0 | F34: 0 | G34: 0 | H34: 0 | I34: 3
B35: 25 | C35: 0 | D35: 0 | E35: 0 | F35: 0 | G35: 0 | H35: 0 | I35: 4
B36: 26 | C36: 39 | D36: 39 | E36: 3 | F36: 5 | G36: 17 | H36: 8 | I36: 5
B37: 27 | C37: 0 | D37: 0 | E37: 0 | F37: 0 | G37: 0 | H37: 0 | I37: 6
B38: 28 | C38: 0 | D38: 0 | E38: 0 | F38: 0 | G38: 0 | H38: 0 | I38: 7
B39: 29 | C39: 39 | D39: 39 | E39: 3 | F39: 5 | G39: 17 | H39: 8 | I39: 1
B40: 30 | C40: 0 | D40: 0 | E40: 0 | F40: 0 | G40: 0 | H40: 0 | I40: 2
B41: 31 | C41: 28 | D41: 26 | E41: 2 | F41: 4 | G41: 17 | H41: 8 | I41: 3
D42: Max NO. Trucks | E42: 6 | F42: 6 | G42: =MAX(G11:G41) -> 17 | H42: =MAX(H11:H41) -> 8

Sheet Terminal operation
G1: Quay Capacity | I1: (must fill in)
B2: Technique inputs (must fill in) | G2: Bay 1 | H2: Bay 2 | I2: Bay 3 | J2: Bay 4
B3: RS speed truck(hrs) | C3: =4/60 -> 0.06666666667 | D3: RS speed crane | E3: =4/60 -> 0.06666666667 | G3: 6 | H3: 9 | I3: 9 | J3: 9 | K3: U
B4: Crane speed beside(hrs) | C4: =3/60 -> 0.05 | D4: Crane speed under | E4: =2.8/60 -> 0.04666666667 | G4: 12 | H4: 15 | I4: 15 | J4: 15 | K4: L
B5: Deckopen time(hrs) | C5: =1.5/60 -> 0.025 | D5: Cranemove time | E5: =2/60 -> 0.03333333333 | G5: 2 | H5: 4 | I5: 1 | J5: 3 | K5: U/L Sequence | S5: =SUM(S8:V11) -> 8.188333333
A7: Voyage | B7: Day | C7: Ship1 or 2 | D7: Arrive time in 24 | E7: No. of cranes | F7: Move or not | G7: Loading and unloading | K7: Type | L7: Volume | M7: Total Volume | N7: Unloading time | O7: Loading time | P7: Handling time | Q7: Average Handling time | S7: =S12*60 -> 11.2 | U7: =U12*60 -> 16.8
A8: 1 | B8: 8 | C8: 1 | D8: 2 | E8: 1 | F8: FALSE | G8: 4 | H8: 6 | I8: 6 | J8: 6 | K8: U(D) | L8: 20 | M8: 76 | N8: 3.978333333 | O8: 4.21 | P8: 8.538333333 | Q8: 8.501666667 | R8: 7.113333333 | S8: 0.1866666667 | T8: 0.28 | U8: 0.28 | V8: 0.28 | W8: U(D) | X8: 0.2333333333 | Y8: 0.2333333333 | Z8: 0.2333333333 | AA8: 0.2333333333
G9: 11 | H9: 15 | I9: 15 | J9: 15 | K9: U(H) | L9: 56 | S9: 0.53 | T9: 0.865 | U9: 0.8333333333 | V9: 0.7233333333 | W9: U(H) | X9: 0.5333333333 | Y9: 0.7866666667 | Z9: 0.7233333333 | AA9: 0.7233333333
G10: 4 | H10: 6 | I10: 6 | J10: 6 | K10: L(D) | L10: 0 | M10: 37 | S10: 0.205 | T10: 0.375 | U10: 0.575 | V10: 0.4416666667 | W10: L(D) | X10: 0.6133333333 | Y10: 0.575 | Z10: 0.7116666667 | AA10: 0.575
G11: 11 | H11: 15 | I11: 15 | J11: 15 | K11: L(H) | L11: 37 | S11: 0.5133333333 | T11: 0.7 | U11: 0.7 | V11: 0.7 | W11: L(H) | X11: 0.5133333333 | Y11: 0.7 | Z11: 0.7 | AA11: 0.7
A12: 2 | B12: 8 | C12: 2 | D12: 8 | E12: 1 | F12: FALSE | G12: 4 | H12: 6 | I12: 6 | J12: 6 | K12: U(D) | L12: 22 | M12: 78 | N12: 4.016666667 | O12: 4.208333333 | P12: 8.575 | R12: 7.673333333 | S12: 0.1866666667 | T12: 0.28 | U12: 0.28 | V12: 0.28 | W12: U(D) | X12: =N12+O12 -> 8.225 | Y12: =SUM(S12:V15) -> 8.225
G13: 11 | H13: 15 | I13: 15 | J13: 15 | K13: U(H) | L13: 56 | S13: 0.53 | T13: 0.9316666667 | U13: 0.805 | V13: 0.7233333333 | W13: U(H)
G14: 4 | H14: 6 | I14: 6 | J14: 6 | K14: L(D) | L14: 0 | M14: 14 | S14: 0.205 | T14: 0.375 | U14: 0.575 | V14: 0.44 | W14: L(D)
G15: 11 | H15: 15 | I15: 15 | J15: 15 | K15: L(H) | L15: 14 | S15: 0.5133333333 | T15: 0.7 | U15: 0.7 | V15: 0.7 | W15: L(H)
A16: 3 | B16: 8 | C16: 1 | D16: 14 | E16: 1 | F16: FALSE | G16: 4 | H16: 6 | I16: 6 | J16: 6 | K16: U(D) | L16: 0 | M16: 49 | N16: 3.966666667 | O16: 3.943333333 | P16: 8.26 | R16: 7.686666667 | S16: 0.1866666667 | T16: 0.28 | U16: 0.28 | V16: 0.28 | W16: U(D)
G17: 11 | H17: 15 | I17: 15 | J17: 15 | K17: U(H) | L17: 49 | S17: 0.53 | T17: 0.9316666667 | U17: 0.755 | V17: 0.7233333333 | W17: U(H)
G18: 4 | H18: 6 | I18: 6 | J18: 6 | K18: L(D) | L18: 0 | M18: 24 | S18: 0.205 | T18: 0.375 | U18: 0.375 | V18: 0.375 | W18: L(D)
G19: 11 | H19: 15 | I19: 15 | J19: 15 | K19: L(H) | L19: 24 | S19: 0.5133333333 | T19: 0.7 | U19: 0.7 | V19: 0.7 | W19: L(H)
A20: 4 | B20: 8 | C20: 2 | D20: 16 | E20: 1 | F20: FALSE | G20: 4 | H20: 6 | I20: 6 | J20: 6 | K20: U(D) | L20: 22 | M20: 78 | N20: 3.916666667 | O20: 3.943333333 | P20: 8.21 | R20: 6.923333333 | S20: 0.1866666667 | T20: 0.28 | U20: 0.28 | V20: 0.28 | W20: U(D)
G21: 11 | H21: 15 | I21: 15 | J21: 15 | K21: U(H) | L21: 56 | S21: 0.53 | T21: 0.8816666667 | U21: 0.755 | V21: 0.7233333333 | W21: U(H)
G22: 4 | H22: 6 | I22: 6 | J22: 6 | K22: L(D) | L22: 22 | M22: 78 | S22: 0.205 | T22: 0.375 | U22: 0.375 | V22: 0.375 | W22: L(D)
G23: 11 | H23: 15 | I23: 15 | J23: 15 | K23: L(H) | L23: 56 | S23: 0.5133333333 | T23: 0.7 | U23: 0.7 | V23: 0.7 | W23: L(H)
A24: 5 | B24: 8 | C24: 1 | D24: 20 | E24: 1 | F24: FALSE | G24: 4 | H24: 6 | I24: 6 | J24: 6 | K24: U(D) | L24: 0 | M24: 54 | N24: 3.9 | O24: 3.943333333 | P24: 8.193333333 | R24: 6.916666667 | S24: 0.1866666667 | T24: 0.28 | U24: 0.28 | V24: 0.28 | W24: U(D) | X24: =N24+O24 -> 7.843333333
G25: 11 | H25: 15 | I25: 15 | J25: 15 | K25: U(H) | L25: 54 | S25: 0.53 | T25: 0.865 | U25: 0.755 | V25: 0.7233333333 | W25: U(H)
G26: 4 | H26: 6 | I26: 6 | J26: 6 | K26: L(D) | L26: 22 | M26: 78 | S26: 0.205 | T26: 0.375 | U26: 0.375 | V26: 0.375 | W26: L(D)
G27: 11 | H27: 15 | I27: 15 | J27: 15 | K27: L(H) | L27: 56 | S27: 0.5133333333 | T27: 0.7 | U27: 0.7 | V27: 0.7 | W27: L(H)
A28: 6 | B28: 8 | C28: 2 | D28: 6 | E28: 1 | F28: FALSE | G28: 4 | H28: 6 | I28: 6 | J28: 6 | K28: U(D) | L28: 0 | M28: 7 | N28: 4.278333333 | O28: 4.163333333 | P28: 8.791666667 | R28: 6.916666667 | S28: 0.1866666667 | T28: 0.28 | U28: 0.28 | V28: 0.28 | W28: U(D) | X28: =N28+O28 -> 8.441666667
G29: 11 | H29: 15 | I29: 15 | J29: 15 | K29: U(H) | L29: 7 | S29: 0.5383333333 | T29: 1.065 | U29: 0.9166666667 | V29: 0.7316666667 | W29: U(H)
G30: 4 | H30: 6 | I30: 6 | J30: 6 | K30: L(D) | L30: 22 | M30: 78 | S30: 0.3666666667 | T30: 0.4333333333 | U30: 0.375 | V30: 0.375 | W30: L(D)
G31: 11 | H31: 15 | I31: 15 | J31: 15 | K31: L(H) | L31: 56 | S31: 0.5133333333 | T31: 0.7 | U31: 0.7 | V31: 0.7 | W31: L(H)
A32: 7 | B32: 8 | C32: 1 | D32: 9 | E32: 1 | F32: FALSE | G32: 4 | H32: 6 | I32: 6 | J32: 6 | K32: U(D) | L32: 22 | M32: 78 | N32: 4.278333333 | O32: 4.096666667 | P32: 8.725 | R32: 6.766666667 | S32: 0.1866666667 | T32: 0.28 | U32: 0.28 | V32: 0.28 | W32: U(D) | X32: =N32+O32 -> 8.375
G33: 11 | H33: 15 | I33: 15 | J33: 15 | K33: U(H) | L33: 56 | S33: 0.5383333333 | T33: 1.065 | U33: 0.9166666667 | V33: 0.7316666667 | W33: U(H)
G34: 4 | H34: 6 | I34: 6 | J34: 6 | K34: L(D) | L34: 22 | M34: 78 | S34: 0.3 | T34: 0.4333333333 | U34: 0.375 | V34: 0.375 | W34: L(D)
G35: 11 | H35: 15 | I35: 15 | J35: 15 | K35: L(H) | L35: 56 | S35: 0.5133333333 | T35: 0.7 | U35: 0.7 | V35: 0.7 | W35: L(H)
A36: 8 | B36: 8 | C36: 2 | D36: 9 | E36: 1 | F36: FALSE | G36: 4 | H36: 6 | I36: 6 | J36: 6 | K36: U(D) | L36: 22 | M36: 78 | N36: 4.278333333 | O36: 4.096666667 | P36: 8.725 | R36: 7.266666667 | S36: 0.1866666667 | T36: 0.28 | U36: 0.28 | V36: 0.28 | W36: U(D) | X36: =N36+O36 -> 8.375
G37: 11 | H37: 15 | I37: 15 | J37: 15 | K37: U(H) | L37: 56 | S37: 0.5383333333 | T37: 1.065 | U37: 0.9166666667 | V37: 0.7316666667 | W37: U(H)
G38: 4 | H38: 6 | I38: 6 | J38: 6 | K38: L(D) | L38: 0 | M38: 54 | S38: 0.3 | T38: 0.4333333333 | U38: 0.375 | V38: 0.375 | W38: L(D)
G39: 11 | H39: 15 | I39: 15 | J39: 15 | K39: L(H) | L39: 54 | S39: 0.5133333333 | T39: 0.7 | U39: 0.7 | V39: 0.7 | W39: L(H)
A40: 9 | B40: 8 | C40: 1 | D40: 12 | E40: 1 | F40: FALSE | G40: 4 | H40: 6 | I40: 6 | J40: 6 | K40: U(D) | L40: 22 | M40: 78 | N40: 4.211666667 | O40: 3.943333333 | P40: 8.505 | R40: 7.216666667 | S40: 0.1866666667 | T40: 0.28 | U40: 0.28 | V40: 0.28 | W40: U(D) | X40: =N40+O40 -> 8.155
G41: 11 | H41: 15 | I41: 15 | J41: 15 | K41: U(H) | L41: 56 | S41: 0.53 | T41: 1.065 | U41: 0.8583333333 | V41: 0.7316666667 | W41: U(H)
G42: 4 | H42: 6 | I42: 6 | J42: 6 | K42: L(D) | L42: 0 | M42: 11 | S42: 0.205 | T42: 0.375 | U42: 0.375 | V42: 0.375 | W42: L(D)
G43: 11 | H43: 15 | I43: 15 | J43: 15 | K43: L(H) | L43: 11 | S43: 0.5133333333 | T43: 0.7 | U43: 0.7 | V43: 0.7 | W43: L(H)
A44: 10 | B44: 8 | C44: 2 | D44: 12 | E44: 1 | F44: FALSE | G44: 4 | H44: 6 | I44: 6 | J44: 6 | K44: U(D) | L44: 22 | M44: 78 | N44: 4.211666667 | O44: 3.943333333 | P44: 8.505 | R44: 7.216666667 | S44: 0.1866666667 | T44: 0.28 | U44: 0.28 | V44: 0.28 | W44: U(D) | X44: =N44+O44 -> 8.155
G45: 11 | H45: 15 | I45: 15 | J45: 15 | K45: U(H) | L45: 56 | S45: 0.53 | T45: 1.065 | U45: 0.8583333333 | V45: 0.7316666667 | W45: U(H)
G46: 4 | H46: 6 | I46: 6 | J46: 6 | K46: L(D) | L46: 22 | M46: 78 | S46: 0.205 | T46: 0.375 | U46: 0.375 | V46: 0.375 | W46: L(D)
G47: 11 | H47: 15 | I47: 15 | J47: 15 | K47: L(H) | L47: 56 | S47: 0.5133333333 | T47: 0.7 | U47: 0.7 | V47: 0.7 | W47: L(H)
A48: 11 | B48: 8 | C48: 1 | D48: 15 | E48: 1 | F48: FALSE | G48: 4 | H48: 6 | I48: 6 | J48: 6 | K48: U(D) | L48: 15 | M48: 71 | N48: 4.033333333 | O48: 3.943333333 | P48: 8.326666667 | R48: 6.57 | S48: 0.1866666667 | T48: 0.28 | U48: 0.28 | V48: 0.28 | W48: U(D) | X48: =N48+O48 -> 7.976666667
G49: 11 | H49: 15 | I49: 15 | J49: 15 | K49: U(H) | L49: 56 | S49: 0.53 | T49: 0.9983333333 | U49: 0.755 | V49: 0.7233333333 | W49: U(H)
G50: 4 | H50: 6 | I50: 6 | J50: 6 | K50: L(D) | L50: 22 | M50: 78 | S50: 0.205 | T50: 0.375 | U50: 0.375 | V50: 0.375 | W50: L(D)
G51: 11 | H51: 15 | I51: 15 | J51: 15 | K51: L(H) | L51: 56 | S51: 0.5133333333 | T51: 0.7 | U51: 0.7 | V51: 0.7 | W51: L(H)
A52: 12 | B52: 8 | C52: 2 | D52: 15 | E52: 1 | F52: FALSE | G52: 4 | H52: 6 | I52: 6 | J52: 6 | K52: U(D) | L52: 20 | M52: 76 | N52: 4.033333333 | O52: 3.943333333 | P52: 8.326666667 | R52: 5.763333333 | S52: 0.1866666667 | T52: 0.28 | U52: 0.28 | V52: 0.28 | W52: U(D) | X52: =N52+O52 -> 7.976666667
G53: 11 | H53: 15 | I53: 15 | J53: 15 | K53: U(H) | L53: 56 | S53: 0.53 | T53: 0.9983333333 | U53: 0.755 | V53: 0.7233333333 | W53: U(H)
G54: 4 | H54: 6 | I54: 6 | J54: 6 | K54: L(D) | L54: 22 | M54: 78 | S54: 0.205 | T54: 0.375 | U54: 0.375 | V54: 0.375 | W54: L(D)
G55: 11 | H55: 15 | I55: 15 | J55: 15 | K55: L(H) | L55: 56 | S55: 0.5133333333 | T55: 0.7 | U55: 0.7 | V55: 0.7 | W55: L(H)
A56: 13 | B56: 8 | C56: 1 | D56: 0 | E56: 1 | F56: FALSE | G56: 4 | H56: 6 | I56: 6 | J56: 6 | K56: U(D) | L56: 15 | M56: 71 | N56: 3.9 | O56: 4.238333333 | P56: 8.488333333 | R56: 6.816666667 | S56: 0.1866666667 | T56: 0.28 | U56: 0.28 | V56: 0.28 | W56: U(D) | X56: =N56+O56 -> 8.138333333
G57: 11 | H57: 15 | I57: 15 | J57: 15 | K57: U(H) | L57: 56 | S57: 0.53 | T57: 0.865 | U57: 0.755 | V57: 0.7233333333 | W57: U(H)
G58: 4 | H58: 6 | I58: 6 | J58: 6 | K58: L(D) | L58: 22 | M58: 78 | S58: 0.205 | T58: 0.4416666667 | U58: 0.4033333333 | V58: 0.575 | W58: L(D)
G59: 11 | H59: 15 | I59: 15 | J59: 15 | K59: L(H) | L59: 56 | S59: 0.5133333333 | T59: 0.7 | U59: 0.7 | V59: 0.7 | W59: L(H)
A60: 14 | B60: 8 | C60: 2 | D60: 6 | E60: 1 | F60: FALSE | G60: 4 | H60: 6 | I60: 6 | J60: 6 | K60: U(D) | L60: 22 | M60: 78 | N60: 4.278333333 | O60: 4.163333333 | P60: 8.791666667 | R60: 6.776666667 | S60: 0.1866666667 | T60: 0.28 | U60: 0.28 | V60: 0.28 | W60: U(D) | X60: =N60+O60 -> 8.441666667
G61: 11 | H61: 15 | I61: 15 | J61: 15 | K61: U(H) | L61: 56 | S61: 0.5383333333 | T61: 1.065 | U61: 0.9166666667 | V61: 0.7316666667 | W61: U(H)
G62: 4 | H62: 6 | I62: 6 | J62: 6 | K62: L(D) | L62: 11 | M62: 67 | S62: 0.3666666667 | T62: 0.4333333333 | U62: 0.375 | V62: 0.375 | W62: L(D)
G63: 11 | H63: 15 | I63: 15 | J63: 15 | K63: L(H) | L63: 56 | S63: 0.5133333333 | T63: 0.7 | U63: 0.7 | V63: 0.7 | W63: L(H)
A64: 15 | B64: 8 | C64: 1 | D64: 6 | E64: 1 | F64: FALSE | G64: 4 | H64: 6 | I64: 6 | J64: 6 | K64: U(D) | L64: 22 | M64: 78 | N64: 4.278333333 | O64: 4.163333333 | P64: 8.791666667 | S64: 0.1866666667 | T64: 0.28 | U64: 0.28 | V64: 0.28 | W64: U(D)
G65: 11 | H65: 15 | I65: 15 | J65: 15 | K65: U(H) | L65: 56 | S65: 0.5383333333 | T65: 1.065 | U65: 0.9166666667 | V65: 0.7316666667 | W65: U(H)
G66: 4 | H66: 6 | I66: 6 | J66: 6 | K66: L(D) | L66: 0 | M66: 0 | S66: 0.3666666667 | T66: 0.4333333333 | U66: 0.375 | V66: 0.375 | W66: L(D)
G67: 11 | H67: 15 | I67: 15 | J67: 15 | K67: L(H) | L67: 0 | S67: 0.5133333333 | T67: 0.7 | U67: 0.7 | V67: 0.7 | W67: L(H)
A68: 16 | B68: 8 | C68: 2 | D68: 9 | E68: 1 | F68: FALSE | G68: 4 | H68: 6 | I68: 6 | J68: 6 | K68: U(D) | L68: 22 | M68: 78 | N68: 4.278333333 | O68: 4.096666667 | P68: 8.725 | S68: 0.1866666667 | T68: 0.28 | U68: 0.28 | V68: 0.28 | W68: U(D)
G69: 11 | H69: 15 | I69: 15 | J69: 15 | K69: U(H) | L69: 56 | S69: 0.5383333333 | T69: 1.065 | U69: 0.9166666667 | V69: 0.7316666667 | W69: U(H)
G70: 4 | H70: 6 | I70: 6 | J70: 6 | K70: L(D) | L70: 0 | M70: 49 | S70: 0.3 | T70: 0.4333333333 | U70: 0.375 | V70: 0.375 | W70: L(D)
G71: 11 | H71: 15 | I71: 15 | J71: 15 | K71: L(H) | L71: 49 | S71: 0.5133333333 | T71: 0.7 | U71: 0.7 | V71: 0.7 | W71: L(H)
A72: 17 | B72: 8 | C72: 1 | D72: 9 | E72: 1 | F72: FALSE | G72: 4 | H72: 6 | I72: 6 | J72: 6 | K72: U(D) | L72: 22 | M72: 78 | N72: 4.278333333 | O72: 4.096666667 | P72: 8.725 | S72: 0.1866666667 | T72: 0.28 | U72: 0.28 | V72: 0.28 | W72: U(D)
G73: 11 | H73: 15 | I73: 15 | J73: 15 | K73: U(H) | L73: 56 | S73: 0.5383333333 | T73: 1.065 | U73: 0.9166666667 | V73: 0.7316666667 | W73: U(H)
G74: 4 | H74: 6 | I74: 6 | J74: 6 | K74: L(D) | L74: 22 | M74: 78 | S74: 0.3 | T74: 0.4333333333 | U74: 0.375 | V74: 0.375 | W74: L(D)
G75: 11 | H75: 15 | I75: 15 | J75: 15 | K75: L(H) | L75: 56 | S75: 0.5133333333 | T75: 0.7 | U75: 0.7 | V75: 0.7 | W75: L(H)
A76: 18 | B76: 8 | C76: 2 | D76: 12 | E76: 1 | F76: FALSE | G76: 4 | H76: 6 | I76: 6 | J76: 6 | K76: U(D) | L76: 0 | M76: 7 | N76: 4.211666667 | O76: 3.943333333 | P76: 8.505 | S76: 0.1866666667 | T76: 0.28 | U76: 0.28 | V76: 0.28 | W76: U(D)
G77: 11 | H77: 15 | I77: 15 | J77: 15 | K77: U(H) | L77: 7 | S77: 0.53 | T77: 1.065 | U77: 0.8583333333 | V77: 0.7316666667 | W77: U(H)
G78: 4 | H78: 6 | I78: 6 | J78: 6 | K78: L(D) | L78: 22 | M78: 78 | S78: 0.205 | T78: 0.375 | U78: 0.375 | V78: 0.375 | W78: L(D)
G79: 11 | H79: 15 | I79: 15 | J79: 15 | K79: L(H) | L79: 56 | S79: 0.5133333333 | T79: 0.7 | U79: 0.7 | V79: 0.7 | W79: L(H)
A80: 19 | B80: 8 | C80: 1 | D80: 12 | E80: 1 | F80: FALSE | G80: 4 | H80: 6 | I80: 6 | J80: 6 | K80: U(D) | L80: 0 | M80: 24 | N80: 4.211666667 | O80: 3.943333333 | P80: 8.505 | S80: 0.1866666667 | T80: 0.28 | U80: 0.28 | V80: 0.28 | W80: U(D)
G81: 11 | H81: 15 | I81: 15 | J81: 15 | K81: U(H) | L81: 24 | S81: 0.53 | T81: 1.065 | U81: 0.8583333333 | V81: 0.7316666667 | W81: U(H)
G82: 4 | H82: 6 | I82: 6 | J82: 6 | K82: L(D) | L82: 22 | M82: 78 | S82: 0.205 | T82: 0.375 | U82: 0.375 | V82: 0.375 | W82: L(D)
G83: 11 | H83: 15 | I83: 15 | J83: 15 | K83: L(H) | L83: 56 | S83: 0.5133333333 | T83: 0.7 | U83: 0.7 | V83: 0.7 | W83: L(H)
A84: 20 | B84: 8 | C84: 2 | D84: 15 | E84: 1 | F84: FALSE | G84: 4 | H84: 6 | I84: 6 | J84: 6 | K84: U(D) | L84: 22 | M84: 78 | N84: 4.033333333 | O84: 3.943333333 | P84: 8.326666667 | S84: 0.1866666667 | T84: 0.28 | U84: 0.28 | V84: 0.28 | W84: U(D)
G85: 11 | H85: 15 | I85: 15 | J85: 15 | K85: U(H) | L85: 56 | S85: 0.53 | T85: 0.9983333333 | U85: 0.755 | V85: 0.7233333333 | W85: U(H)
G86: 4 | H86: 6 | I86: 6 | J86: 6 | K86: L(D) | L86: 22 | M86: 78 | S86: 0.205 | T86: 0.375 | U86: 0.375 | V86: 0.375 | W86: L(D)
G87: 11 | H87: 15 | I87: 15 | J87: 15 | K87: L(H) | L87: 56 | S87: 0.5133333333 | T87: 0.7 | U87: 0.7 | V87: 0.7 | W87: L(H)
A88: 21 | B88: 8 | C88: 1 | D88: 15 | E88: 1 | F88: FALSE | G88: 4 | H88: 6 | I88: 6 | J88: 6 | K88: U(D) | L88: 22 | M88: 78 | N88: 4.033333333 | O88: 3.943333333 | P88: 8.326666667 | S88: 0.1866666667 | T88: 0.28 | U88: 0.28 | V88: 0.28 | W88: U(D)
G89: 11 | H89: 15 | I89: 15 | J89: 15 | K89: U(H) | L89: 56 | S89: 0.53 | T89: 0.9983333333 | U89: 0.755 | V89: 0.7233333333 | W89: U(H)
G90: 4 | H90: 6 | I90: 6 | J90: 6 | K90: L(D) | L90: 0 | M90: 29 | S90: 0.205 | T90: 0.375 | U90: 0.375 | V90: 0.375 | W90: L(D)
G91: 11 | H91: 15 | I91: 15 | J91: 15 | K91: L(H) | L91: 29 | S91: 0.5133333333 | T91: 0.7 | U91: 0.7 | V91: 0.7 | W91: L(H)
A92: 22 | B92: 8 | C92: 2 | D92: 18 | E92: 1 | F92: FALSE | G92: 4 | H92: 6 | I92: 6 | J92: 6 | K92: U(D) | L92: 22 | M92: 78 | N92: 3.9 | O92: 3.943333333 | P92: 8.193333333 | S92: 0.1866666667 | T92: 0.28 | U92: 0.28 | V92: 0.28 | W92: U(D)
G93: 11 | H93: 15 | I93: 15 | J93: 15 | K93: U(H) | L93: 56 | S93: 0.53 | T93: 0.865 | U93: 0.755 | V93: 0.7233333333 | W93: U(H)
G94: 4 | H94: 6 | I94: 6 | J94: 6 | K94: L(D) | L94: 0 | M94: 24 | S94: 0.205 | T94: 0.375 | U94: 0.375 | V94: 0.375 | W94: L(D)
G95: 11 | H95: 15 | I95: 15 | J95: 15 | K95: L(H) | L95: 24 | S95: 0.5133333333 | T95: 0.7 | U95: 0.7 | V95: 0.7 | W95: L(H)
A96: 23 | B96: 8 | C96: 1 | D96: 18 | E96: 1 | F96: FALSE | G96: 4 | H96: 6 | I96: 6 | J96: 6 | K96: U(D) | L96: 22 | M96: 78 | N96: 3.9 | O96: 3.943333333 | P96: 8.193333333 | S96: 0.1866666667 | T96: 0.28 | U96: 0.28 | V96: 0.28 | W96: U(D)
G97: 11 | H97: 15 | I97: 15 | J97: 15 | K97: U(H) | L97: 56 | S97: 0.53 | T97: 0.865 | U97: 0.755 | V97: 0.7233333333 | W97: U(H)
G98: 4 | H98: 6 | I98: 6 | J98: 6 | K98: L(D) | L98: 22 | M98: 78 | S98: 0.205 | T98: 0.375 | U98: 0.375 | V98: 0.375 | W98: L(D)
G99: 11 | H99: 15 | I99: 15 | J99: 15 | K99: L(H) | L99: 56 | S99: 0.5133333333 | T99: 0.7 | U99: 0.7 | V99: 0.7 | W99: L(H)
A100: 24 | B100: 8 | C100: 2 | D100: 4 | E100: 1 | F100: FALSE | G100: 4 | H100: 6 | I100: 6 | J100: 6 | K100: U(D) | L100: 0 | M100: 54 | N100: 3.906666667 | O100: 4.18 | P100: 8.436666667 | S100: 0.1866666667 | T100: 0.28 | U100: 0.28 | V100: 0.28 | W100: U(D)
G101: 11 | H101: 15 | I101: 15 | J101: 15 | K101: U(H) | L101: 54 | S101: 0.53 | T101: 0.865 | U101: 0.7616666667 | V101: 0.7233333333 | W101: U(H)
G102: 4 | H102: 6 | I102: 6 | J102: 6 | K102: L(D) | L102: 22 | M102: 78 | S102: 0.2416666667 | T102: 0.575 | U102: 0.375 | V102: 0.375 | W102: L(D)
G103: 11 | H103: 15 | I103: 15 | J103: 15 | K103: L(H) | L103: 56 | S103: 0.5133333333 | T103: 0.7 | U103: 0.7 | V103: 0.7 | W103: L(H)
A104: 25 | B104: 8 | C104: 1 | D104: 6 | E104: 1 | F104: FALSE | G104: 4 | H104: 6 | I104: 6 | J104: 6 | K104: U(D) | L104: 0 | M104: 7 | N104: 4.278333333 | O104: 4.163333333 | P104: 8.791666667 | S104: 0.1866666667 | T104: 0.28 | U104: 0.28 | V104: 0.28 | W104: U(D)
G105: 11 | H105: 15 | I105: 15 | J105: 15 | K105: U(H) | L105: 7 | S105: 0.5383333333 | T105: 1.065 | U105: 0.9166666667 | V105: 0.7316666667 | W105: U(H)
G106: 4 | H106: 6 | I106: 6 | J106: 6 | K106: L(D) | L106: 22 | M106: 78 | S106: 0.3666666667 | T106: 0.4333333333 | U106: 0.375 | V106: 0.375 | W106: L(D)
G107: 11 | H107: 15 | I107: 15 | J107: 15 | K107: L(H) | L107: 56 | S107: 0.5133333333 | T107: 0.7 | U107: 0.7 | V107: 0.7 | W107: L(H)
A108: 26 | B108: 8 | C108: 2 | D108: 7 | E108: 1 | F108: FALSE | G108: 4 | H108: 6 | I108: 6 | J108: 6 | K108: U(D) | L108: 22 | M108: 78 | N108: 3.923333333 | O108: 4.18 | P108: 8.453333333 | S108: 0.1866666667 | T108: 0.28 | U108: 0.28 | V108: 0.28 | W108: U(D)
G109: 11 | H109: 15 | I109: 15 | J109: 15 | K109: U(H) | L109: 56 | S109: 0.53 | T109: 0.8816666667 | U109: 0.7616666667 | V109: 0.7233333333 | W109: U(H)
G110: 4 | H110: 6 | I110: 6 | J110: 6 | K110: L(D) | L110: 22 | M110: 78 | S110: 0.2416666667 | T110: 0.575 | U110: 0.375 | V110: 0.375 | W110: L(D)
G111: 11 | H111: 15 | I111: 15 | J111: 15 | K111: L(H) | L111: 56 | S111: 0.5133333333 | T111: 0.7 | U111: 0.7 | V111: 0.7 | W111: L(H)
A112: 27 | B112: 8 | C112: 1 | D112: 9 | E112: 1 | F112: FALSE | G112: 4 | H112: 6 | I112: 6 | J112: 6 | K112: U(D) | L112: 22 | M112: 78 | N112: 4.278333333 | O112: 4.096666667 | P112: 8.725 | S112: 0.1866666667 | T112: 0.28 | U112: 0.28 | V112: 0.28 | W112: U(D)
G113: 11 | H113: 15 | I113: 15 | J113: 15 | K113: U(H) | L113: 56 | S113: 0.5383333333 | T113: 1.065 | U113: 0.9166666667 | V113: 0.7316666667 | W113: U(H)
G114: 4 | H114: 6 | I114: 6 | J114: 6 | K114: L(D) | L114: 22 | M114: 78 | S114: 0.3 | T114: 0.4333333333 | U114: 0.375 | V114: 0.375 | W114: L(D)
G115: 11 | H115: 15 | I115: 15 | J115: 15 | K115: L(H) | L115: 56 | S115: 0.5133333333 | T115: 0.7 | U115: 0.7 | V115: 0.7 | W115: L(H)
A116: 28 | B116: 8 | C116: 2 | D116: 10 | E116: 1 | F116: FALSE | G116: 4 | H116: 6 | I116: 6 | J116: 6 | K116: U(D) | L116: 22 | M116: 78 | N116: 3.923333333 | O116: 4.113333333 | P116: 8.386666667 | S116: 0.1866666667 | T116: 0.28 | U116: 0.28 | V116: 0.28 | W116: U(D)
G117: 11 | H117: 15 | I117: 15 | J117: 15 | K117: U(H) | L117: 56 | S117: 0.53 | T117: 0.8816666667 | U117: 0.7616666667 | V117: 0.7233333333 | W117: U(H)
G118: 4 | H118: 6 | I118: 6 | J118: 6 | K118: L(D) | L118: 0 | M118: 0 | S118: 0.2416666667 | T118: 0.5083333333 | U118: 0.375 | V118: 0.375 | W118: L(D)
G119: 11 | H119: 15 | I119: 15 | J119: 15 | K119: L(H) | L119: 0 | S119: 0.5133333333 | T119: 0.7 | U119: 0.7 | V119: 0.7 | W119: L(H)
K120: U(D) | W120: U(D)
K121: U(H) | W121: U(H)
K122: L(D) | W122: L(D)
K123: L(H) | W123: L(H)
K124: U(D) | W124: U(D)
K125: U(H) | W125: U(H)
K126: L(D) | W126: L(D)
K127: L(H) | W127: L(H)
K128: U(D) | W128: U(D)
K129: U(H) | W129: U(H)
K130: L(D) | W130: L(D)
K131: L(H) | W131: L(H)
K132: U(D) | W132: U(D)
K133: U(H) | W133: U(H)
K134: L(D) | W134: L(D)
K135: L(H) | W135: L(H)
K136: U(D) | W136: U(D)
K137: U(H) | W137: U(H)
K138: L(D) | W138: L(D)
K139: L(H) | W139: L(H)
K140: U(D) | W140: U(D)
K141: U(H) | W141: U(H)
K142: L(D) | W142: L(D)
K143: L(H) | W143: L(H)

Sheet Scheduling(method2)
A1: Input | B1: No. of Ships | C1: 1 | D1: Max Freq./ship | E1: 42 | F1: First voy. time | H1: Decision day | I1: Arrival | J1: Arri 24h | K1: Earliest arri | L1: Day/Day of week | M1: Latest arri | N1: Day/Day of week | O1: Decision_arri | P1: Day | Q1: Total Cost
B2: Frequency/ship | C2: 30 | D2: Adjusted Freq | E2: 42 | H2: 1/Mon | I2: 6 | J2: 6
B3: Handling time | C3: 9 | D3: No. of weeks | E3: 13 | H3: 3/Wed | I3: 58 | J3: 10
B4: Turnaround time | C4: 51 | H4: 5/Fri | I4: 110 | J4: 14
F5: Fixed | G5: 100 | H5: 7/Sun | I5: 162 | J5: 18 | K5: 15 | L5: 7/Sun | M5: 9 | N5: 9/Tue
A6: Cost Rate | B6: Begin | C6: Finish | D6: Begin 24h | E6: Finish 24h | F6: Change | G6: Rate | H6: 9/Tue | I6: 214 | J6: 22
A7: Monday | B7: 0 | C7: 6 | D7: =MOD(B7,24) -> 0 | E7: =MOD(C7,24) -> 6 | F7: 52.5 | G7: =$G$5+F7 -> 152.5 | H7: 12/Fri | I7: 266 | J7: 2
A8: Monday | B8: 6 | C8: 19 | D8: =MOD(B8,24) -> 6 | E8: 19 | F8: 30 | G8: =$G$5+F8 -> 130 | H8: 14/Sun | I8: 318 | J8: 6 | K8: 0 | L8: 14/Sun | M8: 18 | N8: 15/Mon
A9: Monday | B9: 19 | C9: =6+24 -> 30 | D9: 19 | E9: 6 | F9: 40 | G9: 140 | H9: 16/Tue | I9: 370 | J9: 10
A10: Tuesday | B10: =B8+24 -> 30 | C10: 43 | D10: 6 | E10: 19 | F10: 30 | G10: 130 | H10: 18/Thu | I10: 422 | J10: 14
A11: Tuesday | B11: 43 | C11: 54 | D11: 19 | E11: 6 | F11: 40 | G11: 140 | H11: 20/Sat | I11: 474 | J11: 18
A12: Wednesday | B12: 54 | C12: 67 | D12: 6 | E12: 19 | F12: 30 | G12: 130 | H12: 22/Mon | I12: 526 | J12: 22
A13: Wednesday | B13: 67 | C13: 78 | D13: 19 | E13: 6 | F13: 40 | G13: 140 | H13: 25/Thu | I13: 578 | J13: 2
A14: Thursday | B14: 78 | C14: 91 | D14: 6 | E14: 19 | F14: 30 | G14: 130 | H14: 27/Sat | I14: 630 | J14: 6
A15: Thursday | B15: 91 | C15: 102 | D15: 19 | E15: 6 | F15: 40 | G15: 140 | H15: 29/Mon | I15: 682 | J15: 10
A16: Friday | B16: 102 | C16: 115 | D16: 6 | E16: 19 | F16: 30 | G16: 130 | H16: 31/Wed | I16: 734 | J16: 14
A17: Friday | B17: 115 | C17: 120 | D17: 19 | E17: 0 | F17: 40 | G17: 140 | H17: 33/Fri | I17: 786 | J17: 18
A18: Saturday | B18: 120 | C18: 126 | D18: 0 | E18: 6 | F18: 42 | G18: 142 | H18: 35/Sun | I18: 838 | J18: 22
A19: Saturday | B19: 126 | C19: 139 | D19: 6 | E19: 19 | F19: 40 | G19: 140 | H19: 38/Wed | I19: 890 | J19: 2
A20: Saturday | B20: 139 | C20: 144 | D20: 19 | E20: 0 | F20: 42 | G20: 142 | H20: 40/Fri | I20: 942 | J20: 6
A21: Sunday | B21: 144 | C21: 168 | D21: 0 | E21: 0 | F21: 52.5 | G21: 152.5 | H21: 42/Sun | I21: 994 | J21: 10 | K21: 15 | L21: 41/Sat | M21: 9 | N21: 43/Mon
H22: 44/Tue | I22: 1046 | J22: 14
H23: 46/Thu | I23: 1098 | J23: 18
H24: 48/Sat | I24: 1150 | J24: 22
H25: 51/Tue | I25: 1202 | J25: 2
H26: 53/Thu | I26: 1254 | J26: 6
H27: 55/Sat | I27: 1306 | J27: 10
H28: 57/Mon | I28: 1358 | J28: 14
H29: 59/Wed | I29: 1410 | J29: 18
H30: 61/Fri | I30: 1462 | J30: 22
H31: 64/Mon | I31: 1514 | J31: 2
H32: 66/Wed | I32: 1566 | J32: 6
H33: 68/Fri | I33: 1618 | J33: 10 | S33: =2190-I41 -> 156
H34: 70/Sun | I34: 1670 | J34: 14 | K34: 6 | L34: 69/Sat | M34: 0 | N34: 71/Mon
H35: 72/Tue | I35: 1722 | J35: 18
H36: 74/Thu | I36: 1774 | J36: 22
H37: 77/Sun | I37: 1826 | J37: 2 | K37: 15 | L37: 75/Fri | M37: 9 | N37: 77/Sun
H38: 79/Tue | I38: 1878 | J38: 6
H39: 81/Thu | I39: 1930 | J39: 10
H40: 83/Sat | I40: 1982 | J40: 14
H41: 85/Mon | I41: 2034 | J41: 18
H42: 87/Wed | I42: 2086 | J42: 22
H43: 90/Sat | I43: 2138 | J43: 2

Sheet Sheet1 (hidden)
A1: 0 | B1: 0 | C1: 0 | D1: 0 | E1: 0 | F1: 0 | G1: 0 | H1: 0 | I1: 0 | L1: =L2-K2 -> 0
A2: 0 | B2: 0 | C2: 0 | D2: 0 | E2: 0 | F2: 0 | G2: 0 | H2: 0 | I2: 0 | J2: 6 | K2: 0 | L2: 0 | M2: 0 | O2: 6 | P2: 6.083333333 | Q2: 0 | R2: 0
A3: 0 | B3: 0 | C3: 0 | D3: 0 | E3: 0 | F3: 0 | G3: 0 | H3: 0 | I3: 0 | O3: 7.5 | P3: 7.583333333 | Q3: 0 | R3: 0
A4: 0 | B4: 0 | C4: 0 | D4: 0 | E4: 0 | F4: 0 | G4: 0 | H4: 0 | I4: 0 | O4: 9 | P4: 9.083333333 | Q4: 0 | R4: 0
A5: 0 | B5: 0 | C5: 0 | D5: 0 | E5: 0 | F5: 0 | G5: 0 | H5: 0 | I5: 0 | O5: 10.5 | P5: 10.58333333 | Q5: 0 | R5: 0
A6: 0 | B6: 0 | C6: 0 | D6: 0 | E6: 0 | F6: 0 | G6: 0 | H6: 0 | I6: 0 | O6: 12 | P6: 12.08333333 | Q6: 0 | R6: 0
A7: 0 | B7: 0 | C7: 0 | D7: 0 | E7: 0 | F7: 0 | G7: 0 | H7: 0 | I7: 0 | O7: 13.5 | P7: 13.58333333 | Q7: 0 | R7: 0
A8: 0 | B8: 0 | C8: 0 | D8: 0 | E8: 0 | F8: 0 | G8: 0 | H8: 0 | I8: 0 | O8: 15 | P8: 15.08333333 | Q8: 0 | R8: 0
A9: 0 | B9: 0 | C9: 0 | D9: 0 | E9: 0 | F9: 0 | G9: 0 | H9: 0 | I9: 0 | O9: 16.5 | P9: 0 | Q9: 0 | R9: 0
A10: 0 | B10: 0 | C10: 0 | D10: 0 | E10: 0 | F10: 0 | G10: 0 | H10: 0 | I10: 0 | O10: 18 | P10: 0 | Q10: 0 | R10: 0
A11: 0 | B11: 0 | C11: 0 | D11: 0 | E11: 0 | F11: 0 | G11: 0 | H11: 0 | I11: 0
A12: 0 | B12: 0 | C12: 0 | D12: 0 | E12: 0 | F12: 0 | G12: 0 | H12: 0 | I12: 0
A13: 0 | B13: 0 | C13: 0 | D13: 0 | E13: 0 | F13: 0 | G13: 0 | H13: 0 | I13: 0
A14: 0 | B14: 0 | C14: 0 | D14: 0 | E14: 0 | F14: 0 | G14: 0 | H14: 0 | I14: 0
A15: 0 | B15: 0 | C15: 0 | D15: 0 | E15: 0 | F15: 0 | G15: 0 | H15: 0 | I15: 0
A16: 0 | B16: 0 | C16: 0 | D16: 0 | E16: 0 | F16: 0 | G16: 0 | H16: 0 | I16: 0
A17: 0 | B17: 0 | C17: 0 | D17: 0 | E17: 0 | F17: 0 | G17: 0 | H17: 0 | I17: 0
A18: 0 | B18: 0 | C18: 0 | D18: 0 | E18: 0 | F18: 0 | G18: 0 | H18: 0 | I18: 0
A19: 0 | B19: 0 | C19: 0 | D19: 0 | E19: 0 | F19: 0 | G19: 0 | H19: 0 | I19: 0
A20: 0 | B20: 0 | C20: 0 | D20: 0 | E20: 0 | F20: 0 | G20: 0 | H20: 0 | I20: 0
A21: 0 | B21: 0 | C21: 0 | D21: 0 | E21: 0 | F21: 0 | G21: 0 | H21: 0 | I21: 0
A22: 0 | B22: 0 | C22: 0 | D22: 0 | E22: 0 | F22: 0 | G22: 0 | H22: 0 | I22: 0
A23: 0 | B23: 0 | C23: 0 | D23: 0 | E23: 0 | F23: 0 | G23: 0 | H23: 0 | I23: 0
A24: 0 | B24: 0 | C24: 0 | D24: 0 | E24: 0 | F24: 0 | G24: 0 | H24: 0 | I24: 0
A25: 0 | B25: 0 | C25: 0 | D25: 0 | E25: 0 | F25: 0 | G25: 0 | H25: 0 | I25: 0
A26: 0 | B26: 0 | C26: 0 | D26: 0 | E26: 0 | F26: 0 | G26: 0 | H26: 0 | I26: 0
A27: 0 | B27: 0 | C27: 0 | D27: 0 | E27: 0 | F27: 0 | G27: 0 | H27: 0 | I27: 0
A28: 0 | B28: 0 | C28: 0 | D28: 0 | E28: 0 | F28: 0 | G28: 0 | H28: 0 | I28: 0
A29: 0 | B29: 0 | C29: 0 | D29: 0 | E29: 0 | F29: 0 | G29: 0 | H29: 0 | I29: 0
A30: 0 | B30: 0 | C30: 0 | D30: 0 | E30: 0 | F30: 0 | G30: 0 | H30: 0 | I30: 0
A31: 0 | B31: 0 | C31: 0 | D31: 0 | E31: 0 | F31: 0 | G31: 0 | H31: 0 | I31: 0
A32: 0 | B32: 0 | C32: 0 | D32: 0 | E32: 0 | F32: 0 | G32: 0 | H32: 0 | I32: 0
A33: 0 | B33: 0 | C33: 0 | D33: 0 | E33: 0 | F33: 0 | G33: 0 | H33: 0 | I33: 0
A34: 0 | B34: 0 | C34: 0 | D34: 0 | E34: 0 | F34: 0 | G34: 0 | H34: 0 | I34: 0
A35: 0 | B35: 0 | C35: 0 | D35: 0 | E35: 0 | F35: 0 | G35: 0 | H35: 0 | I35: 0
A36: 0 | B36: 0 | C36: 0 | D36: 0 | E36: 0 | F36: 0 | G36: 0 | H36: 0 | I36: 0
A37: 0 | B37: 0 | C37: 0 | D37: 0 | E37: 0 | F37: 0 | G37: 0 | H37: 0 | I37: 0
A38: 0 | B38: 0 | C38: 0 | D38: 0 | E38: 0 | F38: 0 | G38: 0 | H38: 0 | I38: 0
A39: 0 | B39: 0 | C39: 0 | D39: 0 | E39: 0 | F39: 0 | G39: 0 | H39: 0 | I39: 0
A40: 0 | B40: 0 | C40: 0 | D40: 0 | E40: 0 | F40: 0 | G40: 0 | H40: 0 | I40: 0
A41: 0 | B41: 0 | C41: 0 | D41: 0 | E41: 0 | F41: 0 | G41: 0 | H41: 0 | I41: 0
A42: 0 | B42: 0 | C42: 0 | D42: 0 | E42: 0 | F42: 0 | G42: 0 | H42: 0 | I42: 0
A43: 0 | B43: 0 | C43: 0 | D43: 0 | E43: 0 | F43: 0 | G43: 0 | H43: 0 | I43: 0
A44: 0 | B44: 0 | C44: 0 | D44: 0 | E44: 0 | F44: 0 | G44: 0 | H44: 0 | I44: 0
A45: 0 | B45: 0 | C45: 0 | D45: 0 | E45: 0 | F45: 0 | G45: 0 | H45: 0 | I45: 0
A46: 0 | B46: 0 | C46: 0 | D46: 0 | E46: 0 | F46: 0 | G46: 0 | H46: 0 | I46: 0
A47: 0 | B47: 0 | C47: 0 | D47: 0 | E47: 0 | F47: 0 | G47: 0 | H47: 0 | I47: 0
A48: 0 | B48: 0 | C48: 0 | D48: 0 | E48: 0 | F48: 0 | G48: 0 | H48: 0 | I48: 0
A49: 0 | B49: 0 | C49: 0 | D49: 0 | E49: 0 | F49: 0 | G49: 0 | H49: 0 | I49: 0
A50: 0 | B50: 0 | C50: 0 | D50: 0 | E50: 0 | F50: 0 | G50: 0 | H50: 0 | I50: 0
A51: 0 | B51: 0 | C51: 0 | D51: 0 | E51: 0 | F51: 0 | G51: 0 | H51: 0 | I51: 0
A52: 0 | B52: 0 | C52: 0 | D52: 0 | E52: 0 | F52: 0 | G52: 0 | H52: 0 | I52: 0
A53: 0 | B53: 0 | C53: 0 | D53: 0 | E53: 0 | F53: 0 | G53: 0 | H53: 0 | I53: 0
A54: 0 | B54: 0 | C54: 0 | D54: 0 | E54: 0 | F54: 0 | G54: 0 | H54: 0 | I54: 0
A55: 0 | B55: 0 | C55: 0 | D55: 0 | E55: 0 | F55: 0 | G55: 0 | H55: 0 | I55: 0
A56: 0 | B56: 0 | C56: 0 | D56: 0 | E56: 0 | F56: 0 | G56: 0 | H56: 0 | I56: 0
A57: 0 | B57: 0 | C57: 0 | D57: 0 | E57: 0 | F57: 0 | G57: 0 | H57: 0 | I57: 0
A58: 0 | B58: 0 | C58: 0 | D58: 0 | E58: 0 | F58: 0 | G58: 0 | H58: 0 | I58: 0
A59: 0 | B59: 0 | C59: 0 | D59: 0 | E59: 0 | F59: 0 | G59: 0 | H59: 0 | I59: 0
A60: 0 | B60: 0 | C60: 0 | D60: 0 | E60: 0 | F60: 0 | G60: 0 | H60: 0 | I60: 0
A61: 0 | B61: 0 | C61: 0 | D61: 0 | E61: 0 | F61: 0 | G61: 0 | H61: 0 | I61: 0
A62: 0 | B62: 0 | C62: 0 | D62: 0 | E62: 0 | F62: 0 | G62: 0 | H62: 0 | I62: 0
A63: 0 | B63: 0 | C63: 0 | D63: 0 | E63: 0 | F63: 0 | G63: 0 | H63: 0 | I63: 0
A64: 0 | B64: 0 | C64: 0 | D64: 0 | E64: 0 | F64: 0 | G64: 0 | H64: 0 | I64: 0
A65: 0 | B65: 0 | C65: 0 | D65: 0 | E65: 0 | F65: 0 | G65: 0 | H65: 0 | I65: 0
A66: 0 | B66: 0 | C66: 0 | D66: 0 | E66: 0 | F66: 0 | G66: 0 | H66: 0 | I66: 0
A67: 0 | B67: 0 | C67: 0 | D67: 0 | E67: 0 | F67: 0 | G67: 0 | H67: 0 | I67: 0
A68: 0 | B68: 0 | C68: 0 | D68: 0 | E68: 0 | F68: 0 | G68: 0 | H68: 0 | I68: 0
A69: 0 | B69: 0 | C69: 0 | D69: 0 | E69: 0 | F69: 0 | G69: 0 | H69: 0 | I69: 0
A70: 0 | B70: 0 | C70: 0 | D70: 0 | E70: 0 | F70: 0 | G70: 0 | H70: 0 | I70: 0
A71: 0 | B71: 0 | C71: 0 | D71: 0 | E71: 0 | F71: 0 | G71: 0 | H71: 0 | I71: 0
A72: 0 | B72: 0 | C72: 0 | D72: 0 | E72: 0 | F72: 0 | G72: 0 | H72: 0 | I72: 0
A73: 0 | B73: 0 | C73: 0 | D73: 0 | E73: 0 | F73: 0 | G73: 0 | H73: 0 | I73: 0
A74: 0 | B74: 0 | C74: 0 | D74: 0 | E74: 0 | F74: 0 | G74: 0 | H74: 0 | I74: 0
A75: 0 | B75: 0 | C75: 0 | D75: 0 | E75: 0 | F75: 0 | G75: 0 | H75: 0 | I75: 0
A76: 0 | B76: 0 | C76: 0 | D76: 0 | E76: 0 | F76: 0 | G76: 0 | H76: 0 | I76: 0
A77: 0 | B77: 0 | C77: 0 | D77: 0 | E77: 0 | F77: 0 | G77: 0 | H77: 0 | I77: 0
A78: 0 | B78: 0 | C78: 0 | D78: 0 | E78: 0 | F78: 0 | G78: 0 | H78: 0 | I78: 0
A79: 0 | B79: 0 | C79: 0 | D79: 0 | E79: 0 | F79: 0 | G79: 0 | H79: 0 | I79: 0
A80: 0 | B80: 0 | C80: 0 | D80: 0 | E80: 0 | F80: 0 | G80: 0 | H80: 0 | I80: 0
A81: 0 | B81: 0 | C81: 0 | D81: 0 | E81: 0 | F81: 0 | G81: 0 | H81: 0 | I81: 0
A82: 0 | B82: 0 | C82: 0 | D82: 0 | E82: 0 | F82: 0 | G82: 0 | H82: 0 | I82: 0
A83: 0 | B83: 0 | C83: 0 | D83: 0 | E83: 0 | F83: 0 | G83: 0 | H83: 0 | I83: 0
A84: 0 | B84: 0 | C84: 0 | D84: 0 | E84: 0 | F84: 0 | G84: 0 | H84: 0 | I84: 0
A85: 0 | B85: 0 | C85: 0 | D85: 0 | E85: 0 | F85: 0 | G85: 0 | H85: 0 | I85: 0
A86: 0 | B86: 0 | C86: 0 | D86: 0 | E86: 0 | F86: 0 | G86: 0 | H86: 0 | I86: 0
A87: 0 | B87: 0 | C87: 0 | D87: 0 | E87: 0 | F87: 0 | G87: 0 | H87: 0 | I87: 0
A88: 0 | B88: 0 | C88: 0 | D88: 0 | E88: 0 | F88: 0 | G88: 0 | H88: 0 | I88: 0
A89: 0 | B89: 0 | C89: 0 | D89: 0 | E89: 0 | F89: 0 | G89: 0 | H89: 0 | I89: 0
A90: 0 | B90: 0 | C90: 0 | D90: 0 | E90: 0 | F90: 0 | G90: 0 | H90: 0 | I90: 0
A91: 0 | B91: 0 | C91: 0 | D91: 0 | E91: 0 | F91: 0 | G91: 0 | H91: 0 | I91: 0
A92: 0 | B92: 0 | C92: 0 | D92: 0 | E92: 0 | F92: 0 | G92: 0 | H92: 0 | I92: 0
A93: 0 | B93: 0 | C93: 0 | D93: 0 | E93: 0 | F93: 0 | G93: 0 | H93: 0 | I93: 0
A94: 0 | B94: 0 | C94: 0 | D94: 0 | E94: 0 | F94: 0 | G94: 0 | H94: 0 | I94: 0
A95: 0 | B95: 0 | C95: 0 | D95: 0 | E95: 0 | F95: 0 | G95: 0 | H95: 0 | I95: 0
A96: 0 | B96: 0 | C96: 0 | D96: 0 | E96: 0 | F96: 0 | G96: 0 | H96: 0 | I96: 0
A97: 0 | B97: 0 | C97: 0 | D97: 0 | E97: 0 | F97: 0 | G97: 0 | H97: 0 | I97: 0
A98: 0 | B98: 0 | C98: 0 | D98: 0 | E98: 0 | F98: 0 | G98: 0 | H98: 0 | I98: 0
A99: 0 | B99: 0 | C99: 0 | D99: 0 | E99: 0 | F99: 0 | G99: 0 | H99: 0 | I99: 0
A100: 0 | B100: 0 | C100: 0 | D100: 0 | E100: 0 | F100: 0 | G100: 0 | H100: 0 | I100: 0
A101: 0 | B101: 0 | C101: 0 | D101: 0 | E101: 0 | F101: 0 | G101: 0 | H101: 0 | I101: 0
A102: 0 | B102: 0 | C102: 0 | D102: 0 | E102: 0 | F102: 0 | G102: 0 | H102: 0 | I102: 0
A103: 0 | B103: 0 | C103: 0 | D103: 0 | E103: 0 | F103: 0 | G103: 0 | H103: 0 | I103: 0
A104: 0 | B104: 0 | C104: 0 | D104: 0 | E104: 0 | F104: 0 | G104: 0 | H104: 0 | I104: 0
A105: 0 | B105: 0 | C105: 0 | D105: 0 | E105: 0 | F105: 0 | G105: 0 | H105: 0 | I105: 0
A106: 0 | B106: 0 | C106: 0 | D106: 0 | E106: 0 | F106: 0 | G106: 0 | H106: 0 | I106: 0
A107: 0 | B107: 0 | C107: 0 | D107: 0 | E107: 0 | F107: 0 | G107: 0 | H107: 0 | I107: 0
A108: 0 | B108: 0 | C108: 0 | D108: 0 | E108: 0 | F108: 0 | G108: 0 | H108: 0 | I108: 0
A109: 0 | B109: 0 | C109: 0 | D109: 0 | E109: 0 | F109: 0 | G109: 0 | H109: 0 | I109: 0
A110: 0 | B110: 0 | C110: 0 | D110: 0 | E110: 0 | F110: 0 | G110: 0 | H110: 0 | I110: 0
A111: 0 | B111: 0 | C111: 0 | D111: 0 | E111: 0 | F111: 0 | G111: 0 | H111: 0 | I111: 0
A112: 0 | B112: 0 | C112: 0 | D112: 0 | E112: 0 | F112: 0 | G112: 0 | H112: 0 | I112: 0
A113: 0 | B113: 0 | C113: 0 | D113: 0 | E113: 0 | F113: 0 | G113: 0 | H113: 0 | I113: 0
A114: 0 | B114: 0 | C114: 0 | D114: 0 | E114: 0 | F114: 0 | G114: 0 | H114: 0 | I114: 0
A115: 0 | B115: 0 | C115: 0 | D115: 0 | E115: 0 | F115: 0 | G115: 0 | H115: 0 | I115: 0
A116: 0 | B116: 0 | C116: 0 | D116: 0 | E116: 0 | F116: 0 | G116: 0 | H116: 0 | I116: 0
A117: 0 | B117: 0 | C117: 0 | D117: 0 | E117: 0 | F117: 0 | G117: 0 | H117: 0 | I117: 0
A118: 0 | B118: 0 | C118: 0 | D118: 0 | E118: 0 | F118: 0 | G118: 0 | H118: 0 | I118: 0
A119: 0 | B119: 0 | C119: 0 | D119: 0 | E119: 0 | F119: 0 | G119: 0 | H119: 0 | I119: 0
A120: 0 | B120: 0 | C120: 0 | D120: 0 | E120: 0 | F120: 0 | G120: 0 | H120: 0 | I120: 0
A121: 0 | B121: 0 | C121: 0 | D121: 0 | E121: 0 | F121: 0 | G121: 0 | H121: 0 | I121: 0
A122: 0 | B122: 0 | C122: 0 | D122: 0 | E122: 0 | F122: 0 | G122: 0 | H122: 0 | I122: 0
A123: 0 | B123: 0 | C123: 0 | D123: 0 | E123: 0 | F123: 0 | G123: 0 | H123: 0 | I123: 0
A124: 0 | B124: 0 | C124: 0 | D124: 0 | E124: 0 | F124: 0 | G124: 0 | H124: 0 | I124: 0
A125: 0 | B125: 0 | C125: 0 | D125: 0 | E125: 0 | F125: 0 | G125: 0 | H125: 0 | I125: 0
A126: 0 | B126: 0 | C126: 0 | D126: 0 | E126: 0 | F126: 0 | G126: 0 | H126: 0 | I126: 0
A127: 0 | B127: 0 | C127: 0 | D127: 0 | E127: 0 | F127: 0 | G127: 0 | H127: 0 | I127: 0
A128: 0 | B128: 0 | C128: 0 | D128: 0 | E128: 0 | F128: 0 | G128: 0 | H128: 0 | I128: 0
A129: 0 | B129: 0 | C129: 0 | D129: 0 | E129: 0 | F129: 0 | G129: 0 | H129: 0 | I129: 0
A130: 0 | B130: 0 | C130: 0 | D130: 0 | E130: 0 | F130: 0 | G130: 0 | H130: 0 | I130: 0
A131: 0 | B131: 0 | C131: 0 | D131: 0 | E131: 0 | F131: 0 | G131: 0 | H131: 0 | I131: 0
A132: 0 | B132: 0 | C132: 0 | D132: 0 | E132: 0 | F132: 0 | G132: 0 | H132: 0 | I132: 0
A133: 0 | B133: 0 | C133: 0 | D133: 0 | E133: 0 | F133: 0 | G133: 0 | H133: 0 | I133: 0
A134: 0 | B134: 0 | C134: 0 | D134: 0 | E134: 0 | F134: 0 | G134: 0 | H134: 0 | I134: 0
A135: 0 | B135: 0 | C135: 0 | D135: 0 | E135: 0 | F135: 0 | G135: 0 | H135: 0 | I135: 0
A136: 0 | B136: 0 | C136: 0 | D136: 0 | E136: 0 | F136: 0 | G136: 0 | H136: 0 | I136: 0
A137: 0 | B137: 0 | C137: 0 | D137: 0 | E137: 0 | F137: 0 | G137: 0 | H137: 0 | I137: 0
A138: 0 | B138: 0 | C138: 0 | D138: 0 | E138: 0 | F138: 0 | G138: 0 | H138: 0 | I138: 0
A139: 0 | B139: 0 | C139: 0 | D139: 0 | E139: 0 | F139: 0 | G139: 0 | H139: 0 | I139: 0
A140: 0 | B140: 0 | C140: 0 | D140: 0 | E140: 0 | F140: 0 | G140: 0 | H140: 0 | I140: 0
A141: 0 | B141: 0 | C141: 0 | D141: 0 | E141: 0 | F141: 0 | G141: 0 | H141: 0 | I141: 0
A142: 0 | B142: 0 | C142: 0 | D142: 0 | E142: 0 | F142: 0 | G142: 0 | H142: 0 | I142: 0
A143: 0 | B143: 0 | C143: 0 | D143: 0 | E143: 0 | F143: 0 | G143: 0 | H143: 0 | I143: 0
A144: 0 | B144: 0 | C144: 0 | D144: 0 | E144: 0 | F144: 0 | G144: 0 | H144: 0 | I144: 0
A145: 0 | B145: 0 | C145: 0 | D145: 0 | E145: 0 | F145: 0 | G145: 0 | H145: 0 | I145: 0
A146: 0 | B146: 0 | C146: 0 | D146: 0 | E146: 0 | F146: 0 | G146: 0 | H146: 0 | I146: 0
A147: 0 | B147: 0 | C147: 0 | D147: 0 | E147: 0 | F147: 0 | G147: 0 | H147: 0 | I147: 0
A148: 0 | B148: 0 | C148: 0 | D148: 0 | E148: 0 | F148: 0 | G148: 0 | H148: 0 | I148: 0
A149: 0 | B149: 0 | C149: 0 | D149: 0 | E149: 0 | F149: 0 | G149: 0 | H149: 0 | I149: 0
A150: 0 | B150: 0 | C150: 0 | D150: 0 | E150: 0 | F150: 0 | G150: 0 | H150: 0 | I150: 0
A151: 0 | B151: 0 | C151: 0 | D151: 0 | E151: 0 | F151: 0 | G151: 0 | H151: 0 | I151: 0
A152: 0 | B152: 0 | C152: 0 | D152: 0 | E152: 0 | F152: 0 | G152: 0 | H152: 0 | I152: 0
A153: 0 | B153: 0 | C153: 0 | D153: 0 | E153: 0 | F153: 0 | G153: 0 | H153: 0 | I153: 0
A154: 0 | B154: 0 | C154: 0 | D154: 0 | E154: 0 | F154: 0 | G154: 0 | H154: 0 | I154: 0
A155: 0 | B155: 0 | C155: 0 | D155: 0 | E155: 0 | F155: 0 | G155: 0 | H155: 0 | I155: 0
A156: 0 | B156: 0 | C156: 0 | D156: 0 | E156: 0 | F156: 0 | G156: 0 | H156: 0 | I156: 0
A157: 0 | B157: 0 | C157: 0 | D157: 0 | E157: 0 | F157: 0 | G157: 0 | H157: 0 | I157: 0
A158: 0 | B158: 0 | C158: 0 | D158: 0 | E158: 0 | F158: 0 | G158: 0 | H158: 0 | I158: 0
A159: 0 | B159: 0 | C159: 0 | D159: 0 | E159: 0 | F159: 0 | G159: 0 | H159: 0 | I159: 0
A160: 0 | B160: 0 | C160: 0 | D160: 0 | E160: 0 | F160: 0 | G160: 0 | H160: 0 | I160: 0
A161: 0 | B161: 0 | C161: 0 | D161: 0 | E161: 0 | F161: 0 | G161: 0 | H161: 0 | I161: 0
A162: 0 | B162: 0 | C162: 0 | D162: 0 | E162: 0 | F162: 0 | G162: 0 | H162: 0 | I162: 0
A163: 0 | B163: 0 | C163: 0 | D163: 0 | E163: 0 | F163: 0 | G163: 0 | H163: 0 | I163: 0
A164: 0 | B164: 0 | C164: 0 | D164: 0 | E164: 0 | F164: 0 | G164: 0 | H164: 0 | I164: 0
A165: 0 | B165: 0 | C165: 0 | D165: 0 | E165: 0 | F165: 0 | G165: 0 | H165: 0 | I165: 0
A166: 0 | B166: 0 | C166: 0 | D166: 0 | E166: 0 | F166: 0 | G166: 0 | H166: 0 | I166: 0
A167: 0 | B167: 0 | C167: 0 | D167: 0 | E167: 0 | F167: 0 | G167: 0 | H167: 0 | I167: 0
A168: 0 | B168: 0 | C168: 0 | D168: 0 | E168: 0 | F168: 0 | G168: 0 | H168: 0 | I168: 0
A169: 0 | B169: 0 | C169: 0 | D169: 0 | E169: 0 | F169: 0 | G169: 0 | H169: 0 | I169: 0
A170: 0 | B170: 0 | C170: 0 | D170: 0 | E170: 0 | F170: 0 | G170: 0 | H170: 0 | I170: 0
A171: 0 | B171: 0 | C171: 0 | D171: 0 | E171: 0 | F171: 0 | G171: 0 | H171: 0 | I171: 0
A172: 0 | B172: 0 | C172: 0 | D172: 0 | E172: 0 | F172: 0 | G172: 0 | H172: 0 | I172: 0
A173: 0 | B173: 0 | C173: 0 | D173: 0 | E173: 0 | F173: 0 | G173: 0 | H173: 0 | I173: 0
A174: 0 | B174: 0 | C174: 0 | D174: 0 | E174: 0 | F174: 0 | G174: 0 | H174: 0 | I174: 0
A175: 0 | B175: 0 | C175: 0 | D175: 0 | E175: 0 | F175: 0 | G175: 0 | H175: 0 | I175: 0
A176: 0 | B176: 0 | C176: 0 | D176: 0 | E176: 0 | F176: 0 | G176: 0 | H176: 0 | I176: 0
A177: 0 | B177: 0 | C177: 0 | D177: 0 | E177: 0 | F177: 0 | G177: 0 | H177: 0 | I177: 0
A178: 0 | B178: 0 | C178: 0 | D178: 0 | E178: 0 | F178: 0 | G178: 0 | H178: 0 | I178: 0
A179: 0 | B179: 0 | C179: 0 | D179: 0 | E179: 0 | F179: 0 | G179: 0 | H179: 0 | I179: 0
A180: 0 | B180: 0 | C180: 0 | D180: 0 | E180: 0 | F180: 0 | G180: 0 | H180: 0 | I180: 0
A181: 0 | B181: 0 | C181: 0 | D181: 0 | E181: 0 | F181: 0 | G181: 0 | H181: 0 | I181: 0
A182: 0 | B182: 0 | C182: 0 | D182: 0 | E182: 0 | F182: 0 | G182: 0 | H182: 0 | I182: 0
A183: 0 | B183: 0 | C183: 0 | D183: 0 | E183: 0 | F183: 0 | G183: 0 | H183: 0 | I183: 0
A184: 0 | B184: 0 | C184: 0 | D184: 0 | E184: 0 | F184: 0 | G184: 0 | H184: 0 | I184: 0
A185: 0 | B185: 0 | C185: 0 | D185: 0 | E185: 0 | F185: 0 | G185: 0 | H185: 0 | I185: 0
A186: 0 | B186: 0 | C186: 0 | D186: 0 | E186: 0 | F186: 0 | G186: 0 | H186: 0 | I186: 0
A187: 0 | B187: 0 | C187: 0 | D187: 0 | E187: 0 | F187: 0 | G187: 0 | H187: 0 | I187: 0
A188: 0 | B188: 0 | C188: 0 | D188: 0 | E188: 0 | F188: 0 | G188: 0 | H188: 0 | I188: 0
A189: 0 | B189: 0 | C189: 0 | D189: 0 | E189: 0 | F189: 0 | G189: 0 | H189: 0 | I189: 0
A190: 0 | B190: 0 | C190: 0 | D190: 0 | E190: 0 | F190: 0 | G190: 0 | H190: 0 | I190: 0
A191: 0 | B191: 0 | C191: 0 | D191: 0 | E191: 0 | F191: 0 | G191: 0 | H191: 0 | I191: 0
A192: 0 | B192: 0 | C192: 0 | D192: 0 | E192: 0 | F192: 0 | G192: 0 | H192: 0 | I192: 0
A193: 0 | B193: 0 | C193: 0 | D193: 0 | E193: 0 | F193: 0 | G193: 0 | H193: 0 | I193: 0
A194: 0 | B194: 0 | C194: 0 | D194: 0 | E194: 0 | F194: 0 | G194: 0 | H194: 0 | I194: 0
A195: 0 | B195: 0 | C195: 0 | D195: 0 | E195: 0 | F195: 0 | G195: 0 | H195: 0 | I195: 0
A196: 0 | B196: 0 | C196: 0 | D196: 0 | E196: 0 | F196: 0 | G196: 0 | H196: 0 | I196: 0
A197: 0 | B197: 0 | C197: 0 | D197: 0 | E197: 0 | F197: 0 | G197: 0 | H197: 0 | I197: 0
A198: 0 | B198: 0 | C198: 0 | D198: 0 | E198: 0 | F198: 0 | G198: 0 | H198: 0 | I198: 0
A199: 0 | B199: 0 | C199: 0 | D199: 0 | E199: 0 | F199: 0 | G199: 0 | H199: 0 | I199: 0
A200: 0 | B200: 0 | C200: 0 | D200: 0 | E200: 0 | F200: 0 | G200: 0 | H200: 0 | I200: 0
... 100 more rows

Sheet Sheet2 (hidden)
A7: ship_schedule | G7: ship_scheduling | M7: ship time
A8: empty b s | B8: accum | C8: ship1/2 | D8: em loading | E8: which day | G8: empty b s | H8: accum | I8: ship1/2 | J8: em loading | K8: which day
A9: 0 | B9: 0 | C9: 0 | D9: 0 | E9: 1 | G9: 60 | H9: 79 | I9: 1 | J9: 0 | K9: 2 | M9: 0 | N9: 0 | O9: 0 | P9: 0 | Q9: 1
A10: 0 | B10: 0 | C10: 0 | D10: 0 | E10: 1 | G10: 0 | H10: 56 | I10: 1 | J10: 0 | K10: 4 | M10: 7 | N10: 1 | O10: 0 | P10: 0 | Q10: 2
A11: 60 | B11: 79 | C11: 1 | D11: 0 | E11: 2 | G11: 0 | H11: 80 | I11: 1 | J11: 0 | K11: 7 | M11: 0 | N11: 0 | O11: 0 | P11: 0 | Q11: 3
A12: 0 | B12: 0 | C12: 0 | D12: 0 | E12: 2 | G12: 0 | H12: 95 | I12: 1 | J12: 0 | K12: 10 | M12: 12 | N12: 1 | O12: 0 | P12: 0 | Q12: 4
A13: 0 | B13: 0 | C13: 0 | D13: 0 | E13: 3 | G13: 0 | H13: 42 | I13: 1 | J13: 0 | K13: 13 | M13: 0 | N13: 0 | O13: 0 | P13: 0 | Q13: 5
A14: 0 | B14: 0 | C14: 0 | D14: 0 | E14: 3 | G14: 0 | H14: 103 | I14: 1 | J14: 0 | K14: 16 | M14: 0 | N14: 0 | O14: 0 | P14: 0 | Q14: 6
A15: 0 | B15: 56 | C15: 1 | D15: 0 | E15: 4 | G15: 0 | H15: 34 | I15: 1 | J15: 0 | K15: 19 | M15: 11 | N15: 1 | O15: 0 | P15: 0 | Q15: 7
A16: 0 | B16: 0 | C16: 0 | D16: 0 | E16: 4 | G16: 0 | H16: 105 | I16: 1 | J16: 0 | K16: 22 | M16: 0 | N16: 0 | O16: 0 | P16: 0 | Q16: 8
A17: 0 | B17: 0 | C17: 0 | D17: 0 | E17: 5 | G17: 0 | H17: 66 | I17: 1 | J17: 0 | K17: 25 | M17: 0 | N17: 0 | O17: 0 | P17: 0 | Q17: 9
A18: 0 | B18: 0 | C18: 0 | D18: 0 | E18: 5 | G18: 0 | H18: 40 | I18: 1 | J18: 0 | K18: 28 | M18: 10 | N18: 1 | O18: 0 | P18: 0 | Q18: 10
A19: 0 | B19: 0 | C19: 0 | D19: 0 | E19: 6 | G19: 0 | H19: 75 | I19: 1 | J19: 0 | K19: 30 | M19: 0 | N19: 0 | O19: 0 | P19: 0 | Q19: 11
A20: 0 | B20: 0 | C20: 0 | D20: 0 | E20: 6 | G20: 0 | H20: 60 | I20: 1 | J20: 0 | K20: 32 | M20: 0 | N20: 0 | O20: 0 | P20: 0 | Q20: 12
A21: 0 | B21: 80 | C21: 1 | D21: 0 | E21: 7 | G21: 0 | H21: 40 | I21: 1 | J21: 0 | K21: 35 | M21: 9 | N21: 1 | O21: 0 | P21: 0 | Q21: 13
A22: 0 | B22: 0 | C22: 0 | D22: 0 | E22: 7 | G22: 0 | H22: 0 | I22: 0 | J22: 0 | K22: 0 | M22: 0 | N22: 0 | O22: 0 | P22: 0 | Q22: 14
A23: 0 | B23: 0 | C23: 0 | D23: 0 | E23: 8 | G23: 0 | H23: 0 | I23: 0 | J23: 0 | K23: 0 | M23: 0 | N23: 0 | O23: 0 | P23: 0 | Q23: 15
A24: 0 | B24: 0 | C24: 0 | D24: 0 | E24: 8 | G24: 0 | H24: 0 | I24: 0 | J24: 0 | K24: 0 | M24: 8 | N24: 1 | O24: 0 | P24: 0 | Q24: 16
A25: 0 | B25: 0 | C25: 0 | D25: 0 | E25: 9 | G25: 0 | H25: 0 | I25: 0 | J25: 0 | K25: 0 | M25: 0 | N25: 0 | O25: 0 | P25: 0 | Q25: 17
A26: 0 | B26: 0 | C26: 0 | D26: 0 | E26: 9 | G26: 0 | H26: 0 | I26: 0 | J26: 0 | K26: 0 | M26: 0 | N26: 0 | O26: 0 | P26: 0 | Q26: 18
A27: 0 | B27: 95 | C27: 1 | D27: 0 | E27: 10 | G27: 0 | H27: 0 | I27: 0 | J27: 0 | K27: 0 | M27: 7 | N27: 1 | O27: 0 | P27: 0 | Q27: 19
A28: 0 | B28: 0 | C28: 0 | D28: 0 | E28: 10 | G28: 0 | H28: 0 | I28: 0 | J28: 0 | K28: 0 | M28: 0 | N28: 0 | O28: 0 | P28: 0 | Q28: 20
A29: 0 | B29: 0 | C29: 0 | D29: 0 | E29: 11 | G29: 0 | H29: 0 | I29: 0 | J29: 0 | K29: 0 | M29: 0 | N29: 0 | O29: 0 | P29: 0 | Q29: 21
A30: 0 | B30: 0 | C30: 0 | D30: 0 | E30: 11 | G30: 0 | H30: 0 | I30: 0 | J30: 0 | K30: 0 | M30: 6 | N30: 1 | O30: 0 | P30: 0 | Q30: 22
A31: 0 | B31: 0 | C31: 0 | D31: 0 | E31: 12 | G31: 0 | H31: 0 | I31: 0 | J31: 0 | K31: 0 | M31: 0 | N31: 0 | O31: 0 | P31: 0 | Q31: 23
A32: 0 | B32: 0 | C32: 0 | D32: 0 | E32: 12 | G32: 0 | H32: 0 | I32: 0 | J32: 0 | K32: 0 | M32: 0 | N32: 0 | O32: 0 | P32: 0 | Q32: 24
A33: 0 | B33: 42 | C33: 1 | D33: 0 | E33: 13 | G33: 0 | H33: 0 | I33: 0 | J33: 0 | K33: 0 | M33: 5 | N33: 1 | O33: 0 | P33: 0 | Q33: 25
A34: 0 | B34: 0 | C34: 0 | D34: 0 | E34: 13 | G34: 0 | H34: 0 | I34: 0 | J34: 0 | K34: 0 | M34: 0 | N34: 0 | O34: 0 | P34: 0 | Q34: 26
A35: 0 | B35: 0 | C35: 0 | D35: 0 | E35: 14 | G35: 0 | H35: 0 | I35: 0 | J35: 0 | K35: 0 | M35: 0 | N35: 0 | O35: 0 | P35: 0 | Q35: 27
A36: 0 | B36: 0 | C36: 0 | D36: 0 | E36: 14 | G36: 0 | H36: 0 | I36: 0 | J36: 0 | K36: 0 | M36: 4 | N36: 1 | O36: 0 | P36: 0 | Q36: 28
A37: 0 | B37: 0 | C37: 0 | D37: 0 | E37: 15 | G37: 0 | H37: 0 | I37: 0 | J37: 0 | K37: 0 | M37: 0 | N37: 0 | O37: 0 | P37: 0 | Q37: 29
A38: 0 | B38: 0 | C38: 0 | D38: 0 | E38: 15 | G38: 0 | H38: 0 | I38: 0 | J38: 0 | K38: 0 | M38: 7 | N38: 1 | O38: 0 | P38: 0 | Q38: 30
A39: 0 | B39: 103 | C39: 1 | D39: 0 | E39: 16 | G39: 0 | H39: 0 | I39: 0 | J39: 0 | K39: 0 | M39: 0 | N39: 0 | O39: 0 | P39: 0 | Q39: 31
A40: 0 | B40: 0 | C40: 0 | D40: 0 | E40: 16 | G40: 0 | H40: 0 | I40: 0 | J40: 0 | K40: 0 | M40: 10 | N40: 1 | O40: 0 | P40: 0 | Q40: 32
A41: 0 | B41: 0 | C41: 0 | D41: 0 | E41: 17 | G41: 0 | H41: 0 | I41: 0 | J41: 0 | K41: 0 | M41: 0 | N41: 0 | O41: 0 | P41: 0 | Q41: 33
A42: 0 | B42: 0 | C42: 0 | D42: 0 | E42: 17 | G42: 0 | H42: 0 | I42: 0 | J42: 0 | K42: 0 | M42: 0 | N42: 0 | O42: 0 | P42: 0 | Q42: 34
A43: 0 | B43: 0 | C43: 0 | D43: 0 | E43: 18 | G43: 0 | H43: 0 | I43: 0 | J43: 0 | K43: 0 | M43: 4 | N43: 1 | O43: 0 | P43: 0 | Q43: 35
A44: 0 | B44: 0 | C44: 0 | D44: 0 | E44: 18 | G44: 0 | H44: 0 | I44: 0 | J44: 0 | K44: 0
A45: 0 | B45: 34 | C45: 1 | D45: 0 | E45: 19 | G45: 0 | H45: 0 | I45: 0 | J45: 0 | K45: 0
A46: 0 | B46: 0 | C46: 0 | D46: 0 | E46: 19 | G46: 0 | H46: 0 | I46: 0 | J46: 0 | K46: 0
A47: 0 | B47: 0 | C47: 0 | D47: 0 | E47: 20 | G47: 0 | H47: 0 | I47: 0 | J47: 0 | K47: 0
A48: 0 | B48: 0 | C48: 0 | D48: 0 | E48: 20 | G48: 0 | H48: 0 | I48: 0 | J48: 0 | K48: 0
A49: 0 | B49: 0 | C49: 0 | D49: 0 | E49: 21 | G49: 0 | H49: 0 | I49: 0 | J49: 0 | K49: 0
A50: 0 | B50: 0 | C50: 0 | D50: 0 | E50: 21 | G50: 0 | H50: 0 | I50: 0 | J50: 0 | K50: 0
A51: 0 | B51: 105 | C51: 1 | D51: 0 | E51: 22 | G51: 0 | H51: 0 | I51: 0 | J51: 0 | K51: 0
A52: 0 | B52: 0 | C52: 0 | D52: 0 | E52: 22 | G52: 0 | H52: 0 | I52: 0 | J52: 0 | K52: 0
A53: 0 | B53: 0 | C53: 0 | D53: 0 | E53: 23 | G53: 0 | H53: 0 | I53: 0 | J53: 0 | K53: 0
A54: 0 | B54: 0 | C54: 0 | D54: 0 | E54: 23 | G54: 0 | H54: 0 | I54: 0 | J54: 0 | K54: 0
A55: 0 | B55: 0 | C55: 0 | D55: 0 | E55: 24 | G55: 0 | H55: 0 | I55: 0 | J55: 0 | K55: 0
A56: 0 | B56: 0 | C56: 0 | D56: 0 | E56: 24 | G56: 0 | H56: 0 | I56: 0 | J56: 0 | K56: 0
A57: 0 | B57: 66 | C57: 1 | D57: 0 | E57: 25 | G57: 0 | H57: 0 | I57: 0 | J57: 0 | K57: 0
A58: 0 | B58: 0 | C58: 0 | D58: 0 | E58: 25 | G58: 0 | H58: 0 | I58: 0 | J58: 0 | K58: 0
A59: 0 | B59: 0 | C59: 0 | D59: 0 | E59: 26 | G59: 0 | H59: 0 | I59: 0 | J59: 0 | K59: 0
A60: 0 | B60: 0 | C60: 0 | D60: 0 | E60: 26 | G60: 0 | H60: 0 | I60: 0 | J60: 0 | K60: 0
A61: 0 | B61: 0 | C61: 0 | D61: 0 | E61: 27 | G61: 0 | H61: 0 | I61: 0 | J61: 0 | K61: 0
A62: 0 | B62: 0 | C62: 0 | D62: 0 | E62: 27 | G62: 0 | H62: 0 | I62: 0 | J62: 0 | K62: 0
A63: 0 | B63: 40 | C63: 1 | D63: 0 | E63: 28 | G63: 0 | H63: 0 | I63: 0 | J63: 0 | K63: 0
A64: 0 | B64: 0 | C64: 0 | D64: 0 | E64: 28 | G64: 0 | H64: 0 | I64: 0 | J64: 0 | K64: 0
A65: 0 | B65: 0 | C65: 0 | D65: 0 | E65: 29 | G65: 0 | H65: 0 | I65: 0 | J65: 0 | K65: 0
A66: 0 | B66: 0 | C66: 0 | D66: 0 | E66: 29 | G66: 0 | H66: 0 | I66: 0 | J66: 0 | K66: 0
A67: 0 | B67: 75 | C67: 1 | D67: 0 | E67: 30 | G67: 0 | H67: 0 | I67: 0 | J67: 0 | K67: 0
A68: 0 | B68: 0 | C68: 0 | D68: 0 | E68: 30 | G68: 0 | H68: 0 | I68: 0 | J68: 0 | K68: 0
A69: 0 | B69: 0 | C69: 0 | D69: 0 | E69: 31 | G69: 0 | H69: 0 | I69: 0 | J69: 0 | K69: 0
A70: 0 | B70: 0 | C70: 0 | D70: 0 | E70: 31 | G70: 0 | H70: 0 | I70: 0 | J70: 0 | K70: 0
A71: 0 | B71: 60 | C71: 1 | D71: 0 | E71: 32 | G71: 0 | H71: 0 | I71: 0 | J71: 0 | K71: 0
A72: 0 | B72: 0 | C72: 0 | D72: 0 | E72: 32 | G72: 0 | H72: 0 | I72: 0 | J72: 0 | K72: 0
A73: 0 | B73: 0 | C73: 0 | D73: 0 | E73: 33 | G73: 0 | H73: 0 | I73: 0 | J73: 0 | K73: 0
A74: 0 | B74: 0 | C74: 0 | D74: 0 | E74: 33 | G74: 0 | H74: 0 | I74: 0 | J74: 0 | K74: 0
A75: 0 | B75: 0 | C75: 0 | D75: 0 | E75: 34 | G75: 0 | H75: 0 | I75: 0 | J75: 0 | K75: 0
A76: 0 | B76: 0 | C76: 0 | D76: 0 | E76: 34 | G76: 0 | H76: 0 | I76: 0 | J76: 0 | K76: 0
A77: 0 | B77: 40 | C77: 1 | D77: 0 | E77: 35 | G77: 0 | H77: 0 | I77: 0 | J77: 0 | K77: 0
A78: 0 | B78: 0 | C78: 0 | D78: 0 | E78: 35 | G78: 0 | H78: 0 | I78: 0 | J78: 0 | K78: 0
